Workbook

Sheet Clima Beam
B2: Selectiontool Clima Beam
F4: Taal/Language/Sprache/Språk/Jazyk | J4: Deutsch
F5: =cal!D5 -> Ausführung: | J5: Einbau
F6: =cal!D6 -> Höhe [cm]: | J6: 9,6
F7: =cal!D7 -> Drehzahlstufe: | J7: Comfort
B9: =cal!B9 -> Temperaturen
B10: =cal!B10 -> Heizen: | F10: =cal!F10 -> Kühlen: | J10: =cal!J10 -> Einheiten
B11: =cal!B11 -> Vorlauftemp. | D11: 75 | E11: =cal!E11 -> °C | F11: =cal!F11 -> Vorlauftemp. | H11: 16 | I11: =E11 -> °C
B12: =cal!B12 -> Rücklauftemp. | D12: 65 | E12: =E11 -> °C | F12: =cal!F12 -> Rücklauftemp. | H12: 18 | I12: =E11 -> °C
B13: =cal!B13 -> Raumtemp. | D13: 20 | E13: =E11 -> °C | F13: =cal!F13 -> Raumtemp. | H13: 27 | I13: =E11 -> °C
B16: =cal!B16 -> Länge [cm] | C16: =cal!C16 -> Wärmeleistung in [W] | D16: =cal!D16 -> Heizmittelstrom in [l/h] | E16: =cal!E16 -> zug. wassers. Druckverlust [kPa] | F16: =cal!F16 -> Sens. kälteleistung in [W] | G16: =cal!G16 -> Kühlmittelstrom in [l/h] | H16: =cal!H16 -> zug. wassers. Druckverlust [kPa] | I16: =cal!I16 -> Luftvolumenstrom [m³/h] | J16: =cal!J16 -> Schalldruckpegel* [dB(A)] | K16: =cal!K16 -> Elektr. leistung [W]
B17: =cal!B17 -> Clima Beam - H9,6 B33 Typ 8
B18: =IF(UnitsNo=1,ROUND(cal!B18,0),IF(UnitsNo=2,ROUND(cal!B18*0.393700787,1),)) -> 70 | C18: =IF(UnitsNo=1,cal!C18,IF(UnitsNo=2,cal!C18*3.412141633,)) -> 596 | D18: =IF(UnitsNo=1,cal!D18,IF(UnitsNo=2,cal!D18/227.124707,)) -> 51.2 | E18: =IF(UnitsNo=1,cal!E18,IF(UnitsNo=2,cal!E18*0.334562)) -> 3.9 | F18: =IF(UnitsNo=1,cal!F18,IF(UnitsNo=2,cal!F18*3.412141633,)) -> 139 | G18: =IF(UnitsNo=1,cal!G18,IF(UnitsNo=2,cal!G18/227.124707,)) -> 59.7 | H18: =IF(UnitsNo=1,cal!H18,IF(UnitsNo=2,cal!H18*0.334562)) -> 5.3 | I18: =IF(UnitsNo=1,cal!I18,IF(UnitsNo=2,cal!I18/1.69901082,)) -> 57 | J18: =cal!J18 -> 16 | K18: =cal!K18 -> 5
B19: =IF(UnitsNo=1,ROUND(cal!B19,0),IF(UnitsNo=2,ROUND(cal!B19*0.393700787,1),)) -> 90 | C19: =IF(UnitsNo=1,cal!C19,IF(UnitsNo=2,cal!C19*3.412141633,)) -> 893 | D19: =IF(UnitsNo=1,cal!D19,IF(UnitsNo=2,cal!D19/227.124707,)) -> 76.8 | E19: =IF(UnitsNo=1,cal!E19,IF(UnitsNo=2,cal!E19*0.334562)) -> 8.9 | F19: =IF(UnitsNo=1,cal!F19,IF(UnitsNo=2,cal!F19*3.412141633,)) -> 208 | G19: =IF(UnitsNo=1,cal!G19,IF(UnitsNo=2,cal!G19/227.124707,)) -> 89.5 | H19: =IF(UnitsNo=1,cal!H19,IF(UnitsNo=2,cal!H19*0.334562)) -> 12.0 | I19: =IF(UnitsNo=1,cal!I19,IF(UnitsNo=2,cal!I19/1.69901082,)) -> 94 | J19: =cal!J19 -> 18 | K19: =cal!K19 -> 6
B20: =IF(UnitsNo=1,ROUND(cal!B20,0),IF(UnitsNo=2,ROUND(cal!B20*0.393700787,1),)) -> 100 | C20: =IF(UnitsNo=1,cal!C20,IF(UnitsNo=2,cal!C20*3.412141633,)) -> 1042 | D20: =IF(UnitsNo=1,cal!D20,IF(UnitsNo=2,cal!D20/227.124707,)) -> 89.6 | E20: =IF(UnitsNo=1,cal!E20,IF(UnitsNo=2,cal!E20*0.334562)) -> 12.2 | F20: =IF(UnitsNo=1,cal!F20,IF(UnitsNo=2,cal!F20*3.412141633,)) -> 243 | G20: =IF(UnitsNo=1,cal!G20,IF(UnitsNo=2,cal!G20/227.124707,)) -> 104.4 | H20: =IF(UnitsNo=1,cal!H20,IF(UnitsNo=2,cal!H20*0.334562)) -> 16.5 | I20: =IF(UnitsNo=1,cal!I20,IF(UnitsNo=2,cal!I20/1.69901082,)) -> 114 | J20: =cal!J20 -> 19 | K20: =cal!K20 -> 7
B21: =IF(UnitsNo=1,ROUND(cal!B21,0),IF(UnitsNo=2,ROUND(cal!B21*0.393700787,1),)) -> 120 | C21: =IF(UnitsNo=1,cal!C21,IF(UnitsNo=2,cal!C21*3.412141633,)) -> 1340 | D21: =IF(UnitsNo=1,cal!D21,IF(UnitsNo=2,cal!D21/227.124707,)) -> 115.2 | E21: =IF(UnitsNo=1,cal!E21,IF(UnitsNo=2,cal!E21*0.334562)) -> 20.4 | F21: =IF(UnitsNo=1,cal!F21,IF(UnitsNo=2,cal!F21*3.412141633,)) -> 312 | G21: =IF(UnitsNo=1,cal!G21,IF(UnitsNo=2,cal!G21/227.124707,)) -> 134.3 | H21: =IF(UnitsNo=1,cal!H21,IF(UnitsNo=2,cal!H21*0.334562)) -> 27.6 | I21: =IF(UnitsNo=1,cal!I21,IF(UnitsNo=2,cal!I21/1.69901082,)) -> 150 | J21: =cal!J21 -> 20 | K21: =cal!K21 -> 9
B22: =IF(UnitsNo=1,ROUND(cal!B22,0),IF(UnitsNo=2,ROUND(cal!B22*0.393700787,1),)) -> 150 | C22: =IF(UnitsNo=1,cal!C22,IF(UnitsNo=2,cal!C22*3.412141633,)) -> 1787 | D22: =IF(UnitsNo=1,cal!D22,IF(UnitsNo=2,cal!D22/227.124707,)) -> 153.6 | E22: =IF(UnitsNo=1,cal!E22,IF(UnitsNo=2,cal!E22*0.334562)) -> 37.0 | F22: =IF(UnitsNo=1,cal!F22,IF(UnitsNo=2,cal!F22*3.412141633,)) -> 416 | G22: =IF(UnitsNo=1,cal!G22,IF(UnitsNo=2,cal!G22/227.124707,)) -> 179.0 | H22: =IF(UnitsNo=1,cal!H22,IF(UnitsNo=2,cal!H22*0.334562)) -> 50.0 | I22: =IF(UnitsNo=1,cal!I22,IF(UnitsNo=2,cal!I22/1.69901082,)) -> 189 | J22: =cal!J22 -> 21 | K22: =cal!K22 -> 11
B23: =IF(UnitsNo=1,ROUND(cal!B23,0),IF(UnitsNo=2,ROUND(cal!B23*0.393700787,1),)) -> 170 | C23: =IF(UnitsNo=1,cal!C23,IF(UnitsNo=2,cal!C23*3.412141633,)) -> 2085 | D23: =IF(UnitsNo=1,cal!D23,IF(UnitsNo=2,cal!D23/227.124707,)) -> 179.2 | E23: =IF(UnitsNo=1,cal!E23,IF(UnitsNo=2,cal!E23*0.334562)) -> 50.9 | F23: =IF(UnitsNo=1,cal!F23,IF(UnitsNo=2,cal!F23*3.412141633,)) -> 486 | G23: =IF(UnitsNo=1,cal!G23,IF(UnitsNo=2,cal!G23/227.124707,)) -> 208.9 | H23: =IF(UnitsNo=1,cal!H23,IF(UnitsNo=2,cal!H23*0.334562)) -> 68.9 | I23: =IF(UnitsNo=1,cal!I23,IF(UnitsNo=2,cal!I23/1.69901082,)) -> 226 | J23: =cal!J23 -> 22 | K23: =cal!K23 -> 12
B24: =IF(UnitsNo=1,ROUND(cal!B24,0),IF(UnitsNo=2,ROUND(cal!B24*0.393700787,1),)) -> 190 | C24: =IF(UnitsNo=1,cal!C24,IF(UnitsNo=2,cal!C24*3.412141633,)) -> 2382 | D24: =IF(UnitsNo=1,cal!D24,IF(UnitsNo=2,cal!D24/227.124707,)) -> 204.8 | E24: =IF(UnitsNo=1,cal!E24,IF(UnitsNo=2,cal!E24*0.334562)) -> 67.3 | F24: =IF(UnitsNo=1,cal!F24,IF(UnitsNo=2,cal!F24*3.412141633,)) -> 555 | G24: =IF(UnitsNo=1,cal!G24,IF(UnitsNo=2,cal!G24/227.124707,)) -> 238.7 | H24: =IF(UnitsNo=1,cal!H24,IF(UnitsNo=2,cal!H24*0.334562)) -> 91.0 | I24: =IF(UnitsNo=1,cal!I24,IF(UnitsNo=2,cal!I24/1.69901082,)) -> 264 | J24: =cal!J24 -> 23 | K24: =cal!K24 -> 14
B25: =IF(UnitsNo=1,ROUND(cal!B25,0),IF(UnitsNo=2,ROUND(cal!B25*0.393700787,1),)) -> 210 | C25: =IF(UnitsNo=1,cal!C25,IF(UnitsNo=2,cal!C25*3.412141633,)) -> 2680 | D25: =IF(UnitsNo=1,cal!D25,IF(UnitsNo=2,cal!D25/227.124707,)) -> 230.5 | E25: =IF(UnitsNo=1,cal!E25,IF(UnitsNo=2,cal!E25*0.334562)) -> 86.2 | F25: =IF(UnitsNo=1,cal!F25,IF(UnitsNo=2,cal!F25*3.412141633,)) -> 625 | G25: =IF(UnitsNo=1,cal!G25,IF(UnitsNo=2,cal!G25/227.124707,)) -> 268.5 | H25: =IF(UnitsNo=1,cal!H25,IF(UnitsNo=2,cal!H25*0.334562)) -> 116.5 | I25: =IF(UnitsNo=1,cal!I25,IF(UnitsNo=2,cal!I25/1.69901082,)) -> 302 | J25: =cal!J25 -> 23 | K25: =cal!K25 -> 16
B26: =IF(UnitsNo=1,ROUND(cal!B26,0),IF(UnitsNo=2,ROUND(cal!B26*0.393700787,1),)) -> 230 | C26: =IF(UnitsNo=1,cal!C26,IF(UnitsNo=2,cal!C26*3.412141633,)) -> 2978 | D26: =IF(UnitsNo=1,cal!D26,IF(UnitsNo=2,cal!D26/227.124707,)) -> 256.1 | E26: =IF(UnitsNo=1,cal!E26,IF(UnitsNo=2,cal!E26*0.334562)) -> 107.6 | F26: =IF(UnitsNo=1,cal!F26,IF(UnitsNo=2,cal!F26*3.412141633,)) -> 694 | G26: =IF(UnitsNo=1,cal!G26,IF(UnitsNo=2,cal!G26/227.124707,)) -> 298.4 | H26: =IF(UnitsNo=1,cal!H26,IF(UnitsNo=2,cal!H26*0.334562)) -> 145.4 | I26: =IF(UnitsNo=1,cal!I26,IF(UnitsNo=2,cal!I26/1.69901082,)) -> 302 | J26: =cal!J26 -> 23 | K26: =cal!K26 -> 16
B27: =IF(UnitsNo=1,ROUND(cal!B27,0),IF(UnitsNo=2,ROUND(cal!B27*0.393700787,1),)) -> 250 | C27: =IF(UnitsNo=1,cal!C27,IF(UnitsNo=2,cal!C27*3.412141633,)) -> 3276 | D27: =IF(UnitsNo=1,cal!D27,IF(UnitsNo=2,cal!D27/227.124707,)) -> 281.7 | E27: =IF(UnitsNo=1,cal!E27,IF(UnitsNo=2,cal!E27*0.334562)) -> 131.6 | F27: =IF(UnitsNo=1,cal!F27,IF(UnitsNo=2,cal!F27*3.412141633,)) -> 763 | G27: =IF(UnitsNo=1,cal!G27,IF(UnitsNo=2,cal!G27/227.124707,)) -> 328.2 | H27: =IF(UnitsNo=1,cal!H27,IF(UnitsNo=2,cal!H27*0.334562)) -> 177.7 | I27: =IF(UnitsNo=1,cal!I27,IF(UnitsNo=2,cal!I27/1.69901082,)) -> 358 | J27: =cal!J27 -> 24 | K27: =cal!K27 -> 19
B28: =IF(UnitsNo=1,ROUND(cal!B28,0),IF(UnitsNo=2,ROUND(cal!B28*0.393700787,1),)) -> 270 | C28: =IF(UnitsNo=1,cal!C28,IF(UnitsNo=2,cal!C28*3.412141633,)) -> 3574 | D28: =IF(UnitsNo=1,cal!D28,IF(UnitsNo=2,cal!D28/227.124707,)) -> 307.3 | E28: =IF(UnitsNo=1,cal!E28,IF(UnitsNo=2,cal!E28*0.334562)) -> 158.3 | F28: =IF(UnitsNo=1,cal!F28,IF(UnitsNo=2,cal!F28*3.412141633,)) -> 833 | G28: =IF(UnitsNo=1,cal!G28,IF(UnitsNo=2,cal!G28/227.124707,)) -> 358.0 | H28: =IF(UnitsNo=1,cal!H28,IF(UnitsNo=2,cal!H28*0.334562)) -> 213.7 | I28: =IF(UnitsNo=1,cal!I28,IF(UnitsNo=2,cal!I28/1.69901082,)) -> 378 | J28: =cal!J28 -> 24 | K28: =cal!K28 -> 20
B29: =IF(UnitsNo=1,ROUND(cal!B29,0),IF(UnitsNo=2,ROUND(cal!B29*0.393700787,1),)) -> 290 | C29: =IF(UnitsNo=1,cal!C29,IF(UnitsNo=2,cal!C29*3.412141633,)) -> 3871 | D29: =IF(UnitsNo=1,cal!D29,IF(UnitsNo=2,cal!D29/227.124707,)) -> 332.9 | E29: =IF(UnitsNo=1,cal!E29,IF(UnitsNo=2,cal!E29*0.334562)) -> 187.6 | F29: =IF(UnitsNo=1,cal!F29,IF(UnitsNo=2,cal!F29*3.412141633,)) -> 902 | G29: =IF(UnitsNo=1,cal!G29,IF(UnitsNo=2,cal!G29/227.124707,)) -> 387.9 | H29: =IF(UnitsNo=1,cal!H29,IF(UnitsNo=2,cal!H29*0.334562)) -> 253.3 | I29: =IF(UnitsNo=1,cal!I29,IF(UnitsNo=2,cal!I29/1.69901082,)) -> 415 | J29: =cal!J29 -> 25 | K29: =cal!K29 -> 21
B30: =cal!B30 -> * Schalldruck bei einer angenommenen Raumdämpfung von 8dB (A) | K30: v2021-06-16
B31: =cal!B31 -> Beachtung: Die Temperatur, bei der Wasserdampf in der Umgebungsluft zu kondensieren beginnt, wird als Taupunkttemperatur bezeichnet. Kondensat kann sowohl das Gerät als auch seine Umgebung beschädigen. Das Gerät schaltet sich nicht aus, wenn der Taupunkt erreicht ist. Der Kunde sollte daher die Taupunkttemperatur überprüfen und verhindern, dass die Temperatur unter den Taupunkt fällt. Jaga N.V. kann nicht für Schäden haftbar gemacht werden, die durch Kondensat verursacht werden.
B32: =cal!B32 -> JAGA N.V. • Verbindingslaan 16 • 3590 Diepenbeek Belgium • T +32 (0)11 29 41 11 • F +32 (0)11 32 35 78 • info@jaga.be • www.jaga.com
B33: =cal!B33 -> KBC IBAN: BE16 459 250 300 174 BIC:KREDBEBB • ING IBAN: BE97 335 009 564 549 BIC: BBRUBEBB • RPR Hasselt 45.752 • BE0413.382.425

Sheet cal (hidden)
L1: Nederlands
L2: English
L3: Deutsch | P3: =IF($M$5=1,NL!M9,IF($M$5=2,EN!M9,IF($M$5=3,DE!M9,IF($M$5=4,FR!M9,IF($M$5=5,NR!M9,IF($M$5=6,SP!M9,IF($M$5=7,SW!M9,IF($M$5=8,TS!M9,IF($M$5=9,ExtraTaal1!M9,IF($M$5=10,ExtraTaal2!M9,IF($M$5=11,ExtraTaal3!M9,))))))))))) -> Daten kopieren
D4: Taal/Language/Sprache/Langue/Språk/Lengua | H4: ='Clima Beam'!J4 -> Deutsch | L4: Français | P4: =IF($M$5=1,NL!M10,IF($M$5=2,EN!M10,IF($M$5=3,DE!M10,IF($M$5=4,FR!M10,IF($M$5=5,NR!M10,IF($M$5=6,SP!M10,IF($M$5=7,SW!M10,IF($M$5=8,TS!M10,IF($M$5=9,ExtraTaal1!M10,IF($M$5=10,ExtraTaal2!M10,IF($M$5=11,ExtraTaal3!M10,))))))))))) -> SI-einheiten
D5: =IF($M$5=1,NL!F5,IF($M$5=2,EN!F5,IF($M$5=3,DE!F5,IF($M$5=4,FR!F5,IF($M$5=5,NR!F5,IF($M$5=6,SP!F5,IF($M$5=7,SW!F5,IF($M$5=8,TS!F5,IF($M$5=9,ExtraTaal1!F5,IF($M$5=10,ExtraTaal2!F5,IF($M$5=11,ExtraTaal3!F5,))))))))))) -> Ausführung: | H5: ='Clima Beam'!J5 -> Einbau | L5: Norsk | M5: =IF('Clima Beam'!$J$4=cal!$L$1,1,IF('Clima Beam'!$J$4=cal!$L$2,2,IF('Clima Beam'!$J$4=cal!$L$3,3,IF('Clima Beam'!$J$4=cal!$L$4,4,IF('Clima Beam'!$J$4=cal!$L$5,5,IF('Clima Beam'!$J$4=cal!$L$6,6,IF('Clima Beam'!$J$4=cal!$L$7,7,IF('Clima Beam'!$J$4=cal!$L$8,8,IF('Clima Beam'!$J$4=cal!$L$9,9,IF('Clima Beam'!$J$4=cal!$L$10,10,IF('Clima Beam'!$J$4=cal!$L$11,11,))))))))))) -> 3 | N5: 1 | P5: =IF($M$5=1,NL!M11,IF($M$5=2,EN!M11,IF($M$5=3,DE!M11,IF($M$5=4,FR!M11,IF($M$5=5,NR!M11,IF($M$5=6,SP!M11,IF($M$5=7,SW!M11,IF($M$5=8,TS!M11,IF($M$5=9,ExtraTaal1!M11,IF($M$5=10,ExtraTaal2!M11,IF($M$5=11,ExtraTaal3!M11,))))))))))) -> Imperiale-einheiten
D6: =IF($M$5=1,NL!F6,IF($M$5=2,EN!F6,IF($M$5=3,DE!F6,IF($M$5=4,FR!F6,IF($M$5=5,NR!F6,IF($M$5=6,SP!F6,IF($M$5=7,SW!F6,IF($M$5=8,TS!F6,IF($M$5=9,ExtraTaal1!F6,IF($M$5=10,ExtraTaal2!F6,IF($M$5=11,ExtraTaal3!F6,))))))))))) -> Höhe [cm]: | H6: ='Clima Beam'!J6 -> 9,6 | L6: Español
D7: =IF($M$5=1,NL!F7,IF($M$5=2,EN!F7,IF($M$5=3,DE!F7,IF($M$5=4,FR!F7,IF($M$5=5,NR!F7,IF($M$5=6,SP!F7,IF($M$5=7,SW!F7,IF($M$5=8,TS!F7,IF($M$5=9,ExtraTaal1!F7,IF($M$5=10,ExtraTaal2!F7,IF($M$5=11,ExtraTaal3!F7,)))))))))))&":" -> Drehzahlstufe: | H7: ='Clima Beam'!J7 -> Comfort | J7: =IF(cal!H7=cal!O13,cal!P13,cal!P14) -> 6V | L7: Svenska
L8: Čeština
B9: =IF($M$5=1,NL!B9,IF($M$5=2,EN!B9,IF($M$5=3,DE!B9,IF($M$5=4,FR!B9,IF($M$5=5,NR!B9,IF($M$5=6,SP!B9,IF($M$5=7,SW!B9,IF($M$5=8,TS!B9,IF($M$5=9,ExtraTaal1!B9,IF($M$5=10,ExtraTaal2!B9,IF($M$5=11,ExtraTaal3!B9,))))))))))) -> Temperaturen | L9: ExtraTaal1
B10: =IF($M$5=1,NL!B10,IF($M$5=2,EN!B10,IF($M$5=3,DE!B10,IF($M$5=4,FR!B10,IF($M$5=5,NR!B10,IF($M$5=6,SP!B10,IF($M$5=7,SW!B10,IF($M$5=8,TS!B10,IF($M$5=9,ExtraTaal1!B10,IF($M$5=10,ExtraTaal2!B10,IF($M$5=11,ExtraTaal3!B10,))))))))))) -> Heizen: | F10: =IF($M$5=1,NL!F10,IF($M$5=2,EN!F10,IF($M$5=3,DE!F10,IF($M$5=4,FR!F10,IF($M$5=5,NR!F10,IF($M$5=6,SP!F10,IF($M$5=7,SW!F10,IF($M$5=8,TS!F10,IF($M$5=9,ExtraTaal1!F10,IF($M$5=10,ExtraTaal2!F10,IF($M$5=11,ExtraTaal3!F10,))))))))))) -> Kühlen: | J10: =IF($M$5=1,NL!J10,IF($M$5=2,EN!J10,IF($M$5=3,DE!J10,IF($M$5=4,FR!J10,IF($M$5=5,NR!J10,IF($M$5=6,SP!J10,IF($M$5=7,SW!J10,IF($M$5=8,TS!J10,IF($M$5=9,ExtraTaal1!J10,IF($M$5=10,ExtraTaal2!J10,IF($M$5=11,ExtraTaal3!J10,))))))))))) -> Einheiten | K10: =IF($M$5=1,NL!K10,IF($M$5=2,EN!K10,IF($M$5=3,DE!K10,IF($M$5=4,FR!K10,IF($M$5=5,NR!K10,IF($M$5=6,SP!K10,IF($M$5=7,SW!K10,IF($M$5=8,TS!K10,IF($M$5=9,ExtraTaal1!K10,IF($M$5=10,ExtraTaal2!K10,IF($M$5=11,ExtraTaal3!K10,))))))))))) -> 0 | L10: ExtraTaal2 | Q10: Heating | S10: Cooling
B11: =IF($M$5=1,NL!B11,IF($M$5=2,EN!B11,IF($M$5=3,DE!B11,IF($M$5=4,FR!B11,IF($M$5=5,NR!B11,IF($M$5=6,SP!B11,IF($M$5=7,SW!B11,IF($M$5=8,TS!B11,IF($M$5=9,ExtraTaal1!B11,IF($M$5=10,ExtraTaal2!B11,IF($M$5=11,ExtraTaal3!B11,))))))))))) -> Vorlauftemp. | D11: ='Clima Beam'!D11 -> 75 | E11: =IF(UnitsNo=1,"°C",IF(UnitsNo=2,"°F",)) -> °C | F11: =IF($M$5=1,NL!F11,IF($M$5=2,EN!F11,IF($M$5=3,DE!F11,IF($M$5=4,FR!F11,IF($M$5=5,NR!F11,IF($M$5=6,SP!F11,IF($M$5=7,SW!F11,IF($M$5=8,TS!F11,IF($M$5=9,ExtraTaal1!F11,IF($M$5=10,ExtraTaal2!F11,IF($M$5=11,ExtraTaal3!F11,))))))))))) -> Vorlauftemp. | H11: ='Clima Beam'!H11 -> 16 | I11: =E11 -> °C | L11: ExtraTaal3 | Q11: =IF(UnitsNo=1,D11,IF(UnitsNo=2,(D11-32)/1.8,)) -> 75 | S11: =IF(UnitsNo=1,H11,IF(UnitsNo=2,(H11-32)/1.8,)) -> 16 | BM11: V Comfort [m³/h]
B12: =IF($M$5=1,NL!B12,IF($M$5=2,EN!B12,IF($M$5=3,DE!B12,IF($M$5=4,FR!B12,IF($M$5=5,NR!B12,IF($M$5=6,SP!B12,IF($M$5=7,SW!B12,IF($M$5=8,TS!B12,IF($M$5=9,ExtraTaal1!B12,IF($M$5=10,ExtraTaal2!B12,IF($M$5=11,ExtraTaal3!B12,))))))))))) -> Rücklauftemp. | D12: ='Clima Beam'!D12 -> 65 | E12: =E11 -> °C | F12: =IF($M$5=1,NL!F12,IF($M$5=2,EN!F12,IF($M$5=3,DE!F12,IF($M$5=4,FR!F12,IF($M$5=5,NR!F12,IF($M$5=6,SP!F12,IF($M$5=7,SW!F12,IF($M$5=8,TS!F12,IF($M$5=9,ExtraTaal1!F12,IF($M$5=10,ExtraTaal2!F12,IF($M$5=11,ExtraTaal3!F12,))))))))))) -> Rücklauftemp. | H12: ='Clima Beam'!H12 -> 18 | I12: =E11 -> °C | L12: Hilfsvariablen: | Q12: =IF(UnitsNo=1,D12,IF(UnitsNo=2,(D12-32)/1.8,)) -> 65 | S12: =IF(UnitsNo=1,H12,IF(UnitsNo=2,(H12-32)/1.8,)) -> 18 | BM12: V Boost[m³/h]
B13: =IF($M$5=1,NL!B13,IF($M$5=2,EN!B13,IF($M$5=3,DE!B13,IF($M$5=4,FR!B13,IF($M$5=5,NR!B13,IF($M$5=6,SP!B13,IF($M$5=7,SW!B13,IF($M$5=8,TS!B13,IF($M$5=9,ExtraTaal1!B13,IF($M$5=10,ExtraTaal2!B13,IF($M$5=11,ExtraTaal3!B13,))))))))))) -> Raumtemp. | D13: ='Clima Beam'!D13 -> 20 | E13: =E11 -> °C | F13: =IF($M$5=1,NL!F13,IF($M$5=2,EN!F13,IF($M$5=3,DE!F13,IF($M$5=4,FR!F13,IF($M$5=5,NR!F13,IF($M$5=6,SP!F13,IF($M$5=7,SW!F13,IF($M$5=8,TS!F13,IF($M$5=9,ExtraTaal1!F13,IF($M$5=10,ExtraTaal2!F13,IF($M$5=11,ExtraTaal3!F13,))))))))))) -> Raumtemp. | H13: ='Clima Beam'!H13 -> 27 | I13: =E11 -> °C | L13: ="9,6" -> 9,6 | M13: =IF($M$5=1,U13,IF($M$5=2,V13,IF($M$5=3,W13,IF($M$5=4,X13,IF($M$5=5,Y13,IF($M$5=6,Z13,IF($M$5=7,Y13,IF($M$5=8,AA13,IF($M$5=9,AA11,IF($M$5=10,AA9,IF($M$5=11,AA7,))))))))))) -> Einbau | O13: Comfort | P13: 6V | Q13: =IF(UnitsNo=1,D13,IF(UnitsNo=2,(D13-32)/1.8,)) -> 20 | S13: =IF(UnitsNo=1,H13,IF(UnitsNo=2,(H13-32)/1.8,)) -> 27 | U13: =NL!M5 -> Inbouw | V13: =EN!M5 -> Built-in | W13: =DE!M5 -> Einbau | X13: =FR!M5 -> Intégré | Y13: =NR!M5 -> Innebygd | Z13: =SP!$M$5 -> Empotrado | AA13: =TS!$M$5 -> Vestavba | AB13: =IF($M$5=1,U13,IF($M$5=2,V13,IF($M$5=3,W13,IF($M$5=4,X13,IF($M$5=5,Y13,IF($M$5=6,Z13,IF($M$5=7,Y13,IF($M$5=8,AA13,IF($M$5=9,AA11,IF($M$5=10,AA9,IF($M$5=11,AA7,))))))))))) -> Einbau | BM13: Schalldruckpegel Comfort [dB(A)]
L14: ="15,3" -> 15,3 | M14: =IF($M$5=1,U14,IF($M$5=2,V14,IF($M$5=3,W14,IF($M$5=4,X14,IF($M$5=5,Y14,IF($M$5=6,Z14,IF($M$5=7,Y14,IF($M$5=8,AA14,IF($M$5=9,AA12,IF($M$5=10,AA10,IF($M$5=11,AA8,))))))))))) -> mit Verkleidung | O14: Boost | P14: 9V | U14: =NL!M6 -> Met omkasting | V14: =EN!M6 -> With casing | W14: =DE!M6 -> mit Verkleidung | X14: =FR!M6 -> Avec caisson | Y14: =NR!M6 -> Med hus | Z14: =SP!$M$6 -> Con Carcasa | AA14: =TS!$M$6 -> s pouzdrem | AB14: =IF($M$5=1,U14,IF($M$5=2,V14,IF($M$5=3,W14,IF($M$5=4,X14,IF($M$5=5,Y14,IF($M$5=6,Z14,IF($M$5=7,Y14,IF($M$5=8,AA14,IF($M$5=9,AA12,IF($M$5=10,AA10,IF($M$5=11,AA8,))))))))))) -> mit Verkleidung | BM14: Schalldruckpegel Boost [dB(A)]
L15: ="25,3" -> 25,3 | M15: =IF($H$5=U13,33,IF($H$5=V13,33,IF($H$5=W13,33,IF($H$5=X13,33,IF($H$5=Y13,33,IF($H$5=Z13,33,IF($H$5=AA13,33,IF($H$5=AA11,33,IF($H$5=AA9,33,IF($H$5=AA7,33,IF($H$5=U14,36,IF($H$5=V14,36,IF($H$5=W14,36,IF($H$5=X14,36,IF($H$5=Y14,36,IF($H$5=Z14,36,IF($H$5=AA14,36,IF($H$5=AA12,36,IF($H$5=AA10,36,IF($H$5=AA8,36,)))))))))))))))))))) -> 33 | BM15: Comfort elektr. Leistungsaufnahme [W]
B16: =IF($M$5=1,NL!B16,IF($M$5=2,EN!B16,IF($M$5=3,DE!B16,IF($M$5=4,FR!B16,IF($M$5=5,NR!B16,IF($M$5=6,SP!B16,IF($M$5=7,SW!B16,IF($M$5=8,TS!B16,IF($M$5=9,ExtraTaal1!B16,IF($M$5=10,ExtraTaal2!B16,IF($M$5=11,ExtraTaal3!B16,))))))))))) -> Länge [cm] | C16: =IF($M$5=1,NL!C16,IF($M$5=2,EN!C16,IF($M$5=3,DE!C16,IF($M$5=4,FR!C16,IF($M$5=5,NR!C16,IF($M$5=6,SP!C16,IF($M$5=7,SW!C16,IF($M$5=8,TS!C16,IF($M$5=9,ExtraTaal1!C16,IF($M$5=10,ExtraTaal2!C16,IF($M$5=11,ExtraTaal3!C16,))))))))))) -> Wärmeleistung in [W] | D16: =IF($M$5=1,NL!D16,IF($M$5=2,EN!D16,IF($M$5=3,DE!D16,IF($M$5=4,FR!D16,IF($M$5=5,NR!D16,IF($M$5=6,SP!D16,IF($M$5=7,SW!D16,IF($M$5=8,TS!D16,IF($M$5=9,ExtraTaal1!D16,IF($M$5=10,ExtraTaal2!D16,IF($M$5=11,ExtraTaal3!D16,))))))))))) -> Heizmittelstrom in [l/h] | E16: =IF($M$5=1,NL!E16,IF($M$5=2,EN!E16,IF($M$5=3,DE!E16,IF($M$5=4,FR!E16,IF($M$5=5,NR!E16,IF($M$5=6,SP!E16,IF($M$5=7,SW!E16,IF($M$5=8,TS!E16,IF($M$5=9,ExtraTaal1!E16,IF($M$5=10,ExtraTaal2!E16,IF($M$5=11,ExtraTaal3!E16,))))))))))) -> zug. wassers. Druckverlust [kPa] | F16: =IF($M$5=1,NL!F16,IF($M$5=2,EN!F16,IF($M$5=3,DE!F16,IF($M$5=4,FR!F16,IF($M$5=5,NR!F16,IF($M$5=6,SP!F16,IF($M$5=7,SW!F16,IF($M$5=8,TS!F16,IF($M$5=9,ExtraTaal1!F16,IF($M$5=10,ExtraTaal2!F16,IF($M$5=11,ExtraTaal3!F16,))))))))))) -> Sens. kälteleistung in [W] | G16: =IF($M$5=1,NL!G16,IF($M$5=2,EN!G16,IF($M$5=3,DE!G16,IF($M$5=4,FR!G16,IF($M$5=5,NR!G16,IF($M$5=6,SP!G16,IF($M$5=7,SW!G16,IF($M$5=8,TS!G16,IF($M$5=9,ExtraTaal1!G16,IF($M$5=10,ExtraTaal2!G16,IF($M$5=11,ExtraTaal3!G16,))))))))))) -> Kühlmittelstrom in [l/h] | H16: =IF($M$5=1,NL!H16,IF($M$5=2,EN!H16,IF($M$5=3,DE!H16,IF($M$5=4,FR!H16,IF($M$5=5,NR!H16,IF($M$5=6,SP!H16,IF($M$5=7,SW!H16,IF($M$5=8,TS!H16,IF($M$5=9,ExtraTaal1!H16,IF($M$5=10,ExtraTaal2!H16,IF($M$5=11,ExtraTaal3!H16,))))))))))) -> zug. wassers. Druckverlust [kPa] | I16: =IF($M$5=1,NL!I16,IF($M$5=2,EN!I16,IF($M$5=3,DE!I16,IF($M$5=4,FR!I16,IF($M$5=5,NR!I16,IF($M$5=6,SP!I16,IF($M$5=7,SW!I16,IF($M$5=8,TS!I16,IF($M$5=9,ExtraTaal1!I16,IF($M$5=10,ExtraTaal2!I16,IF($M$5=11,ExtraTaal3!I16,))))))))))) -> Luftvolumenstrom [m³/h] | J16: =IF($M$5=1,NL!J16,IF($M$5=2,EN!J16,IF($M$5=3,DE!J16,IF($M$5=4,FR!J16,IF($M$5=5,NR!J16,IF($M$5=6,SP!J16,IF($M$5=7,SW!J16,IF($M$5=8,TS!J16,IF($M$5=9,ExtraTaal1!J16,IF($M$5=10,ExtraTaal2!J16,IF($M$5=11,ExtraTaal3!J16,))))))))))) -> Schalldruckpegel* [dB(A)] | K16: =IF($M$5=1,NL!K16,IF($M$5=2,EN!K16,IF($M$5=3,DE!K16,IF($M$5=4,FR!K16,IF($M$5=5,NR!K16,IF($M$5=6,SP!K16,IF($M$5=7,SW!K16,IF($M$5=8,TS!K16,IF($M$5=9,ExtraTaal1!K16,IF($M$5=10,ExtraTaal2!K16,IF($M$5=11,ExtraTaal3!K16,))))))))))) -> Elektr. leistung [W] | L16: =IF($H$6="15,3","20",IF($H$6="25,3","21","8")) -> 8 | BD16: =0.7-0.42 -> 0.280 | BM16: Boost elektr. Leistungsaufnahme [W]
B17: =IF($M$5=1,NL!B17,IF($M$5=2,EN!B17,IF($M$5=3,DE!B17,IF($M$5=4,FR!B17,IF($M$5=5,NR!B17,IF($M$5=6,SP!B17,IF($M$5=7,SW!B17,IF($M$5=8,TS!B17,IF($M$5=9,ExtraTaal1!B17,IF($M$5=10,ExtraTaal2!B17,IF($M$5=11,ExtraTaal3!B17,))))))))))) -> Clima Beam - H9,6 B33 Typ 8 | C17: =IF($M$5=1,NL!C17,IF($M$5=2,EN!C17,IF($M$5=3,DE!C17,IF($M$5=4,FR!C17,IF($M$5=5,NR!C17,IF($M$5=6,SP!C17,IF($M$5=7,SW!C17,IF($M$5=8,TS!C17,IF($M$5=9,ExtraTaal1!C17,IF($M$5=10,ExtraTaal2!C17,IF($M$5=11,ExtraTaal3!C17,))))))))))) -> 0 | D17: =IF($M$5=1,NL!D17,IF($M$5=2,EN!D17,IF($M$5=3,DE!D17,IF($M$5=4,FR!D17,IF($M$5=5,NR!D17,IF($M$5=6,SP!D17,IF($M$5=7,SW!D17,IF($M$5=8,TS!D17,IF($M$5=9,ExtraTaal1!D17,IF($M$5=10,ExtraTaal2!D17,IF($M$5=11,ExtraTaal3!D17,))))))))))) -> 0 | E17: =IF($M$5=1,NL!E17,IF($M$5=2,EN!E17,IF($M$5=3,DE!E17,IF($M$5=4,FR!E17,IF($M$5=5,NR!E17,IF($M$5=6,SP!E17,IF($M$5=7,SW!E17,IF($M$5=8,TS!E17,IF($M$5=9,ExtraTaal1!E17,IF($M$5=10,ExtraTaal2!E17,IF($M$5=11,ExtraTaal3!E17,))))))))))) -> 0 | F17: =IF($M$5=1,NL!F17,IF($M$5=2,EN!F17,IF($M$5=3,DE!F17,IF($M$5=4,FR!F17,IF($M$5=5,NR!F17,IF($M$5=6,SP!F17,IF($M$5=7,SW!F17,IF($M$5=8,TS!F17,IF($M$5=9,ExtraTaal1!F17,IF($M$5=10,ExtraTaal2!F17,IF($M$5=11,ExtraTaal3!F17,))))))))))) -> 0 | G17: =IF($M$5=1,NL!G17,IF($M$5=2,EN!G17,IF($M$5=3,DE!G17,IF($M$5=4,FR!G17,IF($M$5=5,NR!G17,IF($M$5=6,SP!G17,IF($M$5=7,SW!G17,IF($M$5=8,TS!G17,IF($M$5=9,ExtraTaal1!G17,IF($M$5=10,ExtraTaal2!G17,IF($M$5=11,ExtraTaal3!G17,))))))))))) -> 0 | H17: =IF($M$5=1,NL!H17,IF($M$5=2,EN!H17,IF($M$5=3,DE!H17,IF($M$5=4,FR!H17,IF($M$5=5,NR!H17,IF($M$5=6,SP!H17,IF($M$5=7,SW!H17,IF($M$5=8,TS!H17,IF($M$5=9,ExtraTaal1!H17,IF($M$5=10,ExtraTaal2!H17,IF($M$5=11,ExtraTaal3!H17,))))))))))) -> 0 | I17: =IF($M$5=1,NL!I17,IF($M$5=2,EN!I17,IF($M$5=3,DE!I17,IF($M$5=4,FR!I17,IF($M$5=5,NR!I17,IF($M$5=6,SP!I17,IF($M$5=7,SW!I17,IF($M$5=8,TS!I17,IF($M$5=9,ExtraTaal1!I17,IF($M$5=10,ExtraTaal2!I17,IF($M$5=11,ExtraTaal3!I17,))))))))))) -> 0 | J17: =IF($M$5=1,NL!J17,IF($M$5=2,EN!J17,IF($M$5=3,DE!J17,IF($M$5=4,FR!J17,IF($M$5=5,NR!J17,IF($M$5=6,SP!J17,IF($M$5=7,SW!J17,IF($M$5=8,TS!J17,IF($M$5=9,ExtraTaal1!J17,IF($M$5=10,ExtraTaal2!J17,IF($M$5=11,ExtraTaal3!J17,))))))))))) -> 0 | K17: =IF($M$5=1,NL!K17,IF($M$5=2,EN!K17,IF($M$5=3,DE!K17,IF($M$5=4,FR!K17,IF($M$5=5,NR!K17,IF($M$5=6,SP!K17,IF($M$5=7,SW!K17,IF($M$5=8,TS!K17,IF($M$5=9,ExtraTaal1!K17,IF($M$5=10,ExtraTaal2!K17,IF($M$5=11,ExtraTaal3!K17,))))))))))) -> 0 | V17: K1 | W17: n | X17: t | Y17: K2
B18: 70 | C18: =VLOOKUP($B18,$M$22:$BU$33,3+$L$18+$M$18+$P$18,TRUE)*((($Q$11-$Q$12)/LN(($Q$11-$Q$13)/($Q$12-$Q$13)))/((75-65)/LN((75-20)/(65-20)))) -> 596 | D18: =C18/(($Q$11-$Q$12)*1.163) -> 51.2 | E18: =$V$18*(D18^$W$18)*((($B18-14.4)*$X$18)/1000)+($Y$18*D18*D18) -> 3.9 | F18: =VLOOKUP($B18,$M$22:$BU$33,1+$L$18+$M$18+$P$18,TRUE)*((($S$11-$S$12)/LN(($S$11-$S$13)/($S$12-$S$13)))/((16-18)/LN((16-27)/(18-27)))) -> 139 | G18: =F18/(($S$12-$S$11)*1.163) -> 59.7 | H18: =$V$18*(G18^$W$18)*((($B18-14.4)*$X$18)/1000)+($Y$18*G18*G18) -> 5.3 | I18: =IF(VLOOKUP($B18,$M$22:$BU$33,5+$L$18+$M$18+$P$18,TRUE)=0,"///////////",VLOOKUP($B18,$M$22:$BU$33,5+$L$18+$M$18+$P$18,TRUE)) -> 57 | J18: =IF(VLOOKUP($B18,$M$22:$BU$33,7+$L$18+$M$18+$P$18,TRUE)=0,"////////////",VLOOKUP($B18,$M$22:$BU$33,7+$L$18+$M$18+$P$18,TRUE)) -> 16 | K18: =IF(VLOOKUP($B18,$M$22:$BU$33,9+$L$18+$M$18+$P$18,TRUE)=0,"///////////",VLOOKUP($B18,$M$22:$BU$33,9+$L$18+$M$18+$P$18,TRUE)) -> 5 | L18: =IF(L16="20",1,IF(L16="21",11,41)) -> 41 | M18: =IF(L16="8",IF(M15=33,0,IF(M15=36,10,)),IF(M15=33,0,IF(M15=36,20,))) -> 0 | P18: =IF(J7="6V",0,1) -> 0 | T18: Coëfficienten dP | V18: =IF($L$16="20",V$19,IF($L$16="21",AF$19,BJ$19)) -> 0.000937 | W18: =IF($L$16="20",W$19,IF($L$16="21",AG$19,BK$19)) -> 1.789 | X18: 4 | Y18: 0.00139
B19: 90 | C19: =VLOOKUP($B19,$M$22:$BU$33,3+$L$18+$M$18+$P$18,TRUE)*((($Q$11-$Q$12)/LN(($Q$11-$Q$13)/($Q$12-$Q$13)))/((75-65)/LN((75-20)/(65-20)))) -> 893 | D19: =C19/(($Q$11-$Q$12)*1.163) -> 76.8 | E19: 8.9 | F19: =VLOOKUP($B19,$M$22:$BU$33,1+$L$18+$M$18+$P$18,TRUE)*((($S$11-$S$12)/LN(($S$11-$S$13)/($S$12-$S$13)))/((16-18)/LN((16-27)/(18-27)))) -> 208 | G19: 89.5 | H19: 12.0 | I19: =IF(VLOOKUP($B19,$M$22:$BU$33,5+$L$18+$M$18+$P$18,TRUE)=0,"///////////",VLOOKUP($B19,$M$22:$BU$33,5+$L$18+$M$18+$P$18,TRUE)) -> 94 | J19: =IF(VLOOKUP($B19,$M$22:$BU$33,7+$L$18+$M$18+$P$18,TRUE)=0,"///////////",VLOOKUP($B19,$M$22:$BU$33,7+$L$18+$M$18+$P$18,TRUE)) -> 18 | K19: =IF(VLOOKUP($B19,$M$22:$BU$33,9+$L$18+$M$18+$P$18,TRUE)=0,"///////////",VLOOKUP($B19,$M$22:$BU$33,9+$L$18+$M$18+$P$18,TRUE)) -> 6 | T19: Coëfficienten dP | V19: 0.000128 | W19: 1.722 | X19: 2 | Y19: 0.00037 | AD19: Coëfficienten dP | AF19: 0.000128 | AG19: 1.722 | AH19: 4 | AI19: 0.000544 | AN19: Coëfficienten dP | AX19: Coëfficienten dP | BH19: Coëfficienten dP | BJ19: 0.000937 | BK19: 1.789 | BL19: 4 | BM19: 0.00139
B20: 100 | C20: =VLOOKUP($B20,$M$22:$BU$33,3+$L$18+$M$18+$P$18,TRUE)*((($Q$11-$Q$12)/LN(($Q$11-$Q$13)/($Q$12-$Q$13)))/((75-65)/LN((75-20)/(65-20)))) -> 1042 | D20: =C20/(($Q$11-$Q$12)*1.163) -> 89.6 | E20: 12.2 | F20: =VLOOKUP($B20,$M$22:$BU$33,1+$L$18+$M$18+$P$18,TRUE)*((($S$11-$S$12)/LN(($S$11-$S$13)/($S$12-$S$13)))/((16-18)/LN((16-27)/(18-27)))) -> 243 | G20: 104.4 | H20: 16.5 | I20: =IF(VLOOKUP($B20,$M$22:$BU$33,5+$L$18+$M$18+$P$18,TRUE)=0,"///////////",VLOOKUP($B20,$M$22:$BU$33,5+$L$18+$M$18+$P$18,TRUE)) -> 114 | J20: =IF(VLOOKUP($B20,$M$22:$BU$33,7+$L$18+$M$18+$P$18,TRUE)=0,"///////////",VLOOKUP($B20,$M$22:$BU$33,7+$L$18+$M$18+$P$18,TRUE)) -> 19 | K20: =IF(VLOOKUP($B20,$M$22:$BU$33,9+$L$18+$M$18+$P$18,TRUE)=0,"///////////",VLOOKUP($B20,$M$22:$BU$33,9+$L$18+$M$18+$P$18,TRUE)) -> 7 | N20: Typ 20 Einbau | X20: Typ 21 Einbau | AH20: Typ 20 mit Verkleidung | AR20: Typ 21 mit Verkleidung | BB20: Typ 08 Einbau | BL20: Typ 08 mit Verkleidung
B21: 120 | C21: 1340 | D21: 115.2 | E21: 20.4 | F21: 312 | G21: 134.3 | H21: 27.6 | I21: 150 | J21: 20 | K21: 9 | N21: K Comfort Stufe [W] | O21: K Boost Stufe [W] | P21: H Comfort Stufe [W] | Q21: H Boost Stufe [W] | R21: V Comfort [m³/h] | S21: V Boost[m³/h] | T21: Schalldruckpegel Comfort [dB(A)] | U21: Schalldruckpegel Boost [dB(A)] | V21: Comfort elektr. Leistungsaufnahme [W] | W21: Boost elektr. Leistungsaufnahme [W] | X21: Comfort Stufe [W] | Y21: Boost Stufe [W] | Z21: Comfort Stufe [W] | AA21: Boost Stufe [W] | AB21: V Comfort [m³/h] | AC21: V Boost[m³/h] | AD21: Schalldruckpegel Comfort [dB(A)] | AE21: Schalldruckpegel Boost [dB(A)] | AF21: Comfort elektr. Leistungsaufnahme [W] | AG21: Boost elektr. Leistungsaufnahme [W] | AH21: Comfort Stufe [W] | AI21: Boost Stufe [W] | AJ21: Comfort Stufe [W] | AK21: Boost Stufe [W] | AL21: V Comfort [m³/h] | AM21: V Boost[m³/h] | AN21: Schalldruckpegel Comfort [dB(A)] | AO21: Schalldruckpegel Boost [dB(A)] | AP21: Comfort elektr. Leistungsaufnahme [W] | AQ21: Boost elektr. Leistungsaufnahme [W] | AR21: Comfort Stufe [W] | AS21: Boost Stufe [W] | AT21: Comfort Stufe [W] | AU21: Boost Stufe [W] | AV21: V Comfort [m³/h] | AW21: V Boost[m³/h] | AX21: Schalldruckpegel Comfort [dB(A)] | AY21: Schalldruckpegel Boost [dB(A)] | AZ21: Comfort elektr. Leistungsaufnahme [W] | BA21: Boost elektr. Leistungsaufnahme [W] | BB21: Comfort Stufe [W] | BC21: Boost Stufe [W] | BD21: Comfort Stufe [W] | BE21: Boost Stufe [W] | BF21: V Comfort [m³/h] | BG21: V Boost[m³/h] | BH21: Schalldruckpegel Comfort [dB(A)] | BI21: Schalldruckpegel Boost [dB(A)] | BJ21: Comfort elektr. Leistungsaufnahme [W] | BK21: Boost elektr. Leistungsaufnahme [W] | BL21: Comfort Stufe [W] | BM21: Boost Stufe [W] | BN21: Comfort Stufe [W] | BO21: Boost Stufe [W] | BP21: V Comfort [m³/h] | BQ21: V Boost[m³/h] | BR21: Schalldruckpegel Comfort [dB(A)] | BS21: Schalldruckpegel Boost [dB(A)] | BT21: Comfort elektr. Leistungsaufnahme [W] | BU21: Boost elektr. Leistungsaufnahme [W]
B22: 150 | C22: 1787 | D22: 153.6 | E22: 37.0 | F22: 416 | G22: 179.0 | H22: 50.0 | I22: 189 | J22: 21 | K22: 11 | M22: 70 | N22: =(N$25/($M$25-30))*($M22-30) -> 188 | O22: 236 | P22: 874 | Q22: 1268 | R22: 71 | S22: 112 | T22: 17 | U22: 30 | V22: 5 | W22: 7 | X22: =(X$25/($M$25-30))*($M22-30) -> 285 | Y22: 348 | Z22: 945 | AA22: 1492 | AB22: 75 | AC22: 159 | AD22: 17 | AE22: 27 | AF22: 4 | AG22: 5 | AH22: =N22/1.111 -> 170 | AI22: =O22/1.111 -> 212 | AJ22: =P22/1.111 -> 787 | AK22: =Q22/1.111 -> 1141 | AL22: 55 | AM22: 85 | AN22: 17 | AO22: 30 | AP22: 5 | AQ22: 7 | AR22: =X22/1.111 -> 257 | AS22: =Y22/1.111 -> 314 | AT22: =Z22/1.111 -> 850 | AU22: =AA22/1.111 -> 1343 | AV22: 57 | AW22: 119 | AX22: 17 | AY22: 27 | AZ22: 4 | BA22: 5 | BB22: =(BB$25/($M$25-30))*($M22-30) -> 139 | BC22: 185 | BD22: 596 | BE22: 802 | BF22: =R22*0.8 -> 57 | BG22: =S22*0.8 -> 90 | BH22: =T22-1 -> 16 | BI22: =U22-1 -> 29 | BJ22: =V22*0.9 -> 4.5 | BK22: =W22*0.9 -> 6.3 | BL22: =BB22/1.111 -> 125 | BM22: =BC22/1.111 -> 167 | BN22: =BD22/1.111 -> 536 | BO22: 722 | BP22: =BF22/1.315789 -> 43 | BQ22: =BG22/1.338 -> 67 | BR22: =BH22 -> 16 | BS22: =BI22 -> 29 | BT22: =BJ22 -> 5 | BU22: =BK22 -> 6 | BV22: T20 C | BW22: T20 B | BX22: T21 C | BY22: T21 B | BZ22: T08 C | CA22: T08 B
B23: 170 | C23: 2085 | D23: 179.2 | E23: 50.9 | F23: 486 | G23: 208.9 | H23: 68.9 | I23: 226 | J23: 22 | K23: 12 | M23: 90 | N23: 283 | O23: 353 | P23: 1312 | Q23: 1901 | R23: 118 | S23: 197 | T23: 19 | U23: 32 | V23: 7 | W23: 10 | X23: 428 | Y23: 523 | Z23: 1417 | AA23: 2239 | AB23: 100 | AC23: 212 | AD23: 18 | AE23: 29 | AF23: 5 | AG23: 7 | AH23: 254 | AI23: 318 | AJ23: 1181 | AK23: 1711 | AL23: 92 | AM23: 142 | AN23: 19 | AO23: 32 | AP23: =(0.0805*$M23)-0.2343 -> 7 | AQ23: 10 | AR23: 385 | AS23: 470 | AT23: 1276 | AU23: 2015 | AV23: 76 | AW23: 158 | AX23: 18 | AY23: 29 | AZ23: 5 | BA23: 7 | BB23: 208 | BC23: 278 | BD23: 893 | BE23: 1204 | BF23: =R23*0.8 -> 94 | BG23: =S23*0.8 -> 158 | BH23: =T23-1 -> 18 | BI23: 31 | BJ23: =V23*0.9 -> 6.3 | BK23: 9.0 | BL23: 187 | BM23: 250 | BN23: 804 | BO23: 1083 | BP23: =BF23/1.315789 -> 72 | BQ23: =BG23/1.338 -> 118 | BR23: =BH23 -> 18 | BS23: 31 | BT23: =BJ23 -> 6 | BU23: =BK23 -> 9 | BV23: =R23/R$22 -> 1.661972 | BW23: =S23/S$22 -> 1.758929 | BX23: =AB23/AB$22 -> 1.333333 | BY23: =AC23/AC$22 -> 1.333333 | BZ23: =BV23+((BV23-BX23)*0.85) -> 1.941315 | CA23: =BW23+((BW23-BY23)*0.85) -> 2.120685
B24: 190 | C24: 2382 | D24: 204.8 | E24: 67.3 | F24: 555 | G24: 238.7 | H24: 91.0 | I24: 264 | J24: 23 | K24: 14 | M24: 100 | N24: 330 | O24: 412 | P24: 1530 | Q24: 2218 | R24: 142 | S24: 224 | T24: 20 | U24: 33 | V24: 8 | W24: 12 | X24: 499 | Y24: 610 | Z24: 1653 | AA24: 2612 | AB24: 100 | AC24: 212 | AD24: 18 | AE24: 29 | AF24: 5 | AG24: 7 | AH24: 297 | AI24: 371 | AJ24: 1377 | AK24: 1997 | AL24: 110 | AM24: 170 | AN24: 20 | AO24: 33 | AP24: 8 | AQ24: 12 | AR24: 449 | AS24: 549 | AT24: 1488 | AU24: 2351 | AV24: 76 | AW24: 158 | AX24: 18 | AY24: 29 | AZ24: 5 | BA24: 7 | BB24: 243 | BC24: 324 | BD24: 1042 | BE24: 1404 | BF24: 114 | BG24: 179 | BH24: 19 | BI24: 32 | BJ24: 7.2 | BK24: 10.8 | BL24: 219 | BM24: 292 | BN24: 938 | BO24: 1264 | BP24: 86 | BQ24: 134 | BR24: 19 | BS24: 32 | BT24: =BJ24 -> 7 | BU24: =BK24 -> 11 | BV24: 2.000000 | BW24: 2.000000 | BX24: =AB24/AB$22 -> 1.333333 | BY24: =AC24/AC$22 -> 1.333333 | BZ24: =BV24+((BV24-BX24)*0.85) -> 2.566667 | CA24: 2.566667
B25: 210 | C25: 2680 | D25: 230.5 | E25: 86.2 | F25: 625 | G25: 268.5 | H25: 116.5 | I25: 302 | J25: 23 | K25: 16 | M25: 120 | N25: =471*0.9 -> 424 | O25: =0.9*589 -> 530 | P25: =0.9*2186 -> 1967 | Q25: =0.9*3169 -> 2852 | R25: 188 | S25: 298 | T25: 21 | U25: 34 | V25: 10 | W25: 15.3 | X25: =0.9*713 -> 642 | Y25: =0.9*871 -> 784 | Z25: =0.9*2362 -> 2126 | AA25: =0.9*3731 -> 3358 | AB25: 150 | AC25: =AC22*2 -> 318 | AD25: 20 | AE25: 32 | AF25: 7 | AG25: 9 | AH25: 382 | AI25: 477 | AJ25: 1771 | AK25: 2567 | AL25: 146 | AM25: 226 | AN25: 21 | AO25: 34 | AP25: 10 | AQ25: 15.3 | AR25: 578 | AS25: 706 | AT25: 1913 | AU25: 3022 | AV25: 114 | AW25: 238 | AX25: 20 | AY25: 32 | AZ25: 7 | BA25: 9 | BB25: =0.9*347 -> 312 | BC25: =0.9*463 -> 417 | BD25: =0.9*1489 -> 1340 | BE25: =0.9*2006 -> 1805 | BF25: 150 | BG25: 238 | BH25: 20 | BI25: 33 | BJ25: 8.7 | BK25: 13.8 | BL25: 281 | BM25: 375 | BN25: 1206 | BO25: 1625 | BP25: 114 | BQ25: 178 | BR25: 20 | BS25: 33 | BT25: 9 | BU25: 14 | BV25: 2.647887 | BW25: 2.660714 | BX25: 2.000000 | BY25: 2.000000 | BZ25: 3.198592 | CA25: 3.222321
B26: 230 | C26: 2978 | D26: 256.1 | E26: 107.6 | F26: 694 | G26: 298.4 | H26: 145.4 | I26: 302 | J26: 23 | K26: 16 | M26: 150 | N26: =(N$25/($M$25-30))*($M26-30) -> 565 | O26: 707 | P26: 2623 | Q26: 3803 | R26: 236 | S26: 373 | T26: 22 | U26: 35 | V26: 12 | W26: 18.7 | X26: =(X$25/($M$25-30))*($M26-30) -> 856 | Y26: 1045 | Z26: 2834 | AA26: 4477 | AB26: 175 | AC26: 371 | AD26: 21 | AE26: 33 | AF26: 7 | AG26: 10.1 | AH26: 509 | AI26: 636 | AJ26: 2361 | AK26: 3423 | AL26: 183 | AM26: 283 | AN26: 22 | AO26: 35 | AP26: 12 | AQ26: 18.7 | AR26: 770 | AS26: 941 | AT26: 2551 | AU26: 4030 | AV26: 133 | AW26: 277 | AX26: 21 | AY26: 33 | AZ26: 7 | BA26: 10.1 | BB26: =(BB$25/($M$25-30))*($M26-30) -> 416 | BC26: 556 | BD26: 1787 | BE26: 2407 | BF26: 189 | BG26: 298 | BH26: 21 | BI26: 34 | BJ26: 10.5 | BK26: 16.8 | BL26: 375 | BM26: 500 | BN26: 1608 | BO26: 2167 | BP26: 143 | BQ26: 223 | BR26: 21 | BS26: 34 | BT26: 11 | BU26: 17 | BV26: 3.323944 | BW26: 3.330357 | BX26: 2.333333 | BY26: 2.333333 | BZ26: 4.165962 | CA26: 4.177827
B27: 250 | C27: 3276 | D27: 281.7 | E27: 131.6 | F27: 763 | G27: 328.2 | H27: 177.7 | I27: 358 | J27: 24 | K27: 19 | M27: 170 | N27: 659 | O27: 825 | P27: 3060 | Q27: 4437 | R27: 283 | S27: 448 | T27: 23 | U27: 36 | V27: 14 | W27: 22.1 | X27: 998 | Y27: 1219 | Z27: 3307 | AA27: 5223 | AB27: 225 | AC27: 477 | AD27: 22 | AE27: 34 | AF27: 9 | AG27: 12.5 | AH27: 594 | AI27: 742 | AJ27: 2755 | AK27: 3993 | AL27: 219 | AM27: 340 | AN27: 23 | AO27: 36 | AP27: 14 | AQ27: 22.1 | AR27: 898 | AS27: 1098 | AT27: 2976 | AU27: 4702 | AV27: 171 | AW27: 356 | AX27: 22 | AY27: 34 | AZ27: 9 | BA27: 12.5 | BB27: 486 | BC27: 648 | BD27: 2085 | BE27: 2808 | BF27: 226 | BG27: 358 | BH27: 22 | BI27: 35 | BJ27: 12.3 | BK27: 19.9 | BL27: 437 | BM27: 583 | BN27: 1876 | BO27: 2528 | BP27: 172 | BQ27: 268 | BR27: 22 | BS27: 35 | BT27: 12 | BU27: 20 | BV27: 3.985915 | BW27: 4.000000 | BX27: 3.000000 | BY27: 3.000000 | BZ27: 4.823944 | CA27: 4.850000
B28: 270 | C28: 3574 | D28: 307.3 | E28: 158.3 | F28: 833 | G28: 358.0 | H28: 213.7 | I28: 378 | J28: 24 | K28: 20 | M28: 190 | N28: 754 | O28: 942 | P28: 3498 | Q28: 5070 | R28: 330 | S28: 522 | T28: 24 | U28: 36 | V28: 16 | W28: 25.5 | X28: 1141 | Y28: 1394 | Z28: 3779 | AA28: 5970 | AB28: 250 | AC28: 530 | AD28: 22 | AE28: 34 | AF28: 10 | AG28: 13.7 | AH28: 678 | AI28: 848 | AJ28: 3148 | AK28: 4564 | AL28: 256 | AM28: 396 | AN28: 24 | AO28: 36 | AP28: 16 | AQ28: 25.5 | AR28: 1027 | AS28: 1254 | AT28: 3402 | AU28: 5373 | AV28: 190 | AW28: 396 | AX28: 22 | AY28: 34 | AZ28: 10 | BA28: 13.7 | BB28: 555 | BC28: 741 | BD28: 2382 | BE28: 3210 | BF28: 264 | BG28: 418 | BH28: 23 | BI28: 35 | BJ28: 14.1 | BK28: 23.0 | BL28: 500 | BM28: 667 | BN28: 2144 | BO28: 2889 | BP28: 201 | BQ28: 312 | BR28: 23 | BS28: 35 | BT28: 14 | BU28: 23 | BV28: 4.647887 | BW28: 4.660714 | BX28: 3.333333 | BY28: 3.333333 | BZ28: 5.765258 | CA28: 5.788988
B29: 290 | C29: 3871 | D29: 332.9 | E29: 187.6 | F29: 902 | G29: 387.9 | H29: 253.3 | I29: 415 | J29: 25 | K29: 21 | M29: 210 | N29: 848 | O29: 1060 | P29: 3935 | Q29: 5704 | R29: 377 | S29: 597 | T29: 24 | U29: 37 | V29: 18 | W29: 29 | X29: 1283 | Y29: 1568 | Z29: 4252 | AA29: 6716 | AB29: 275 | AC29: 583 | AD29: 23 | AE29: 35 | AF29: 11 | AG29: 14.9 | AH29: 763 | AI29: 954 | AJ29: 3542 | AK29: 5134 | AL29: 293 | AM29: 453 | AN29: 24 | AO29: 36 | AP29: 18 | AQ29: 19 | AR29: 1155 | AS29: 1411 | AT29: 3827 | AU29: 6045 | AV29: 209 | AW29: 436 | AX29: 22 | AY29: 34 | AZ29: 11 | BA29: 14.9 | BB29: 625 | BC29: 833 | BD29: 2680 | BE29: 3611 | BF29: 302 | BG29: 478 | BH29: 23 | BI29: 36 | BJ29: 16.2 | BK29: 26.1 | BL29: 562 | BM29: 750 | BN29: 2412 | BO29: 3250 | BP29: 229 | BQ29: 357 | BR29: 23 | BS29: 36 | BT29: 16 | BU29: 26 | BV29: 5.309859 | BW29: 5.330357 | BX29: 3.666667 | BY29: 3.666667 | BZ29: 6.706573 | CA29: 6.744494
B30: =IF($M$5=1,NL!B31,IF($M$5=2,EN!B31,IF($M$5=3,DE!B31,IF($M$5=4,FR!B31,IF($M$5=5,NR!B31,IF($M$5=6,SP!B31,IF($M$5=7,SW!B31,IF($M$5=8,TS!B31,IF($M$5=9,ExtraTaal1!B31,IF($M$5=10,ExtraTaal2!B31,IF($M$5=11,ExtraTaal3!B31,))))))))))) -> * Schalldruck bei einer angenommenen Raumdämpfung von 8dB (A) | C30: =IF($M$5=1,NL!C30,IF($M$5=2,EN!C30,IF($M$5=3,DE!C30,IF($M$5=4,FR!C30,IF($M$5=5,NR!C30,IF($M$5=6,SP!C30,IF($M$5=7,SW!C30,IF($M$5=8,TS!C30,IF($M$5=9,ExtraTaal1!C30,IF($M$5=10,ExtraTaal2!C30,IF($M$5=11,ExtraTaal3!C30,))))))))))) -> 0 | D30: =IF($M$5=1,NL!D30,IF($M$5=2,EN!D30,IF($M$5=3,DE!D30,IF($M$5=4,FR!D30,IF($M$5=5,NR!D30,IF($M$5=6,SP!D30,IF($M$5=7,SW!D30,IF($M$5=8,TS!D30,IF($M$5=9,ExtraTaal1!D30,IF($M$5=10,ExtraTaal2!D30,IF($M$5=11,ExtraTaal3!D30,))))))))))) -> 0 | E30: =IF($M$5=1,NL!E30,IF($M$5=2,EN!E30,IF($M$5=3,DE!E30,IF($M$5=4,FR!E30,IF($M$5=5,NR!E30,IF($M$5=6,SP!E30,IF($M$5=7,SW!E30,IF($M$5=8,TS!E30,IF($M$5=9,ExtraTaal1!E30,IF($M$5=10,ExtraTaal2!E30,IF($M$5=11,ExtraTaal3!E30,))))))))))) -> 0 | F30: =IF($M$5=1,NL!F30,IF($M$5=2,EN!F30,IF($M$5=3,DE!F30,IF($M$5=4,FR!F30,IF($M$5=5,NR!F30,IF($M$5=6,SP!F30,IF($M$5=7,SW!F30,IF($M$5=8,TS!F30,IF($M$5=9,ExtraTaal1!F30,IF($M$5=10,ExtraTaal2!F30,IF($M$5=11,ExtraTaal3!F30,))))))))))) -> 0 | G30: =IF($M$5=1,NL!G30,IF($M$5=2,EN!G30,IF($M$5=3,DE!G30,IF($M$5=4,FR!G30,IF($M$5=5,NR!G30,IF($M$5=6,SP!G30,IF($M$5=7,SW!G30,IF($M$5=8,TS!G30,IF($M$5=9,ExtraTaal1!G30,IF($M$5=10,ExtraTaal2!G30,IF($M$5=11,ExtraTaal3!G30,))))))))))) -> 0 | H30: =IF($M$5=1,NL!H30,IF($M$5=2,EN!H30,IF($M$5=3,DE!H30,IF($M$5=4,FR!H30,IF($M$5=5,NR!H30,IF($M$5=6,SP!H30,IF($M$5=7,SW!H30,IF($M$5=8,TS!H30,IF($M$5=9,ExtraTaal1!H30,IF($M$5=10,ExtraTaal2!H30,IF($M$5=11,ExtraTaal3!H30,))))))))))) -> 0 | I30: =IF($M$5=1,NL!I30,IF($M$5=2,EN!I30,IF($M$5=3,DE!I30,IF($M$5=4,FR!I30,IF($M$5=5,NR!I30,IF($M$5=6,SP!I30,IF($M$5=7,SW!I30,IF($M$5=8,TS!I30,IF($M$5=9,ExtraTaal1!I30,IF($M$5=10,ExtraTaal2!I30,IF($M$5=11,ExtraTaal3!I30,))))))))))) -> 0 | J30: =IF($M$5=1,NL!J30,IF($M$5=2,EN!J30,IF($M$5=3,DE!J30,IF($M$5=4,FR!J30,IF($M$5=5,NR!J30,IF($M$5=6,SP!J30,IF($M$5=7,SW!J30,IF($M$5=8,TS!J30,IF($M$5=9,ExtraTaal1!J30,IF($M$5=10,ExtraTaal2!J30,IF($M$5=11,ExtraTaal3!J30,))))))))))) -> 0 | K30: =IF($M$5=1,NL!K30,IF($M$5=2,EN!K30,IF($M$5=3,DE!K30,IF($M$5=4,FR!K30,IF($M$5=5,NR!K30,IF($M$5=6,SP!K30,IF($M$5=7,SW!K30,IF($M$5=8,TS!K30,IF($M$5=9,ExtraTaal1!K30,IF($M$5=10,ExtraTaal2!K30,IF($M$5=11,ExtraTaal3!K30,))))))))))) -> 0 | M30: 230 | N30: 942 | O30: 1178 | P30: 4372 | Q30: 6338 | R30: 377 | S30: 597 | T30: 24 | U30: 37 | V30: 18 | W30: 28.9 | X30: 1426 | Y30: 1742 | Z30: 4724 | AA30: 7462 | AB30: 300 | AC30: 636 | AD30: 23 | AE30: 35 | AF30: 11 | AG30: 16.1 | AH30: 848 | AI30: 1060 | AJ30: 3935 | AK30: 5705 | AL30: 293 | AM30: 453 | AN30: 24 | AO30: 37 | AP30: 18 | AQ30: 28.9 | AR30: 1284 | AS30: 1568 | AT30: 4252 | AU30: 6716 | AV30: 228 | AW30: 475 | AX30: 23 | AY30: 35 | AZ30: 11 | BA30: 16.1 | BB30: 694 | BC30: 926 | BD30: 2978 | BE30: 4012 | BF30: 302 | BG30: 478 | BH30: 23 | BI30: 36 | BJ30: 15.9 | BK30: 26.0 | BL30: =BB30/1.111 -> 625 | BM30: =BC30/1.111 -> 833 | BN30: =BD30/1.111 -> 2680 | BO30: =BE30/1.111 -> 3611 | BP30: 229 | BQ30: 357 | BR30: 23 | BS30: 36 | BT30: 16 | BU30: 26 | BV30: 5.309859 | BW30: 5.330357 | BX30: 4.000000 | BY30: 4.000000 | BZ30: 6.423239 | CA30: 6.461161
B31: =IF($M$5=1,NL!B32,IF($M$5=2,EN!B32,IF($M$5=3,DE!B32,IF($M$5=4,FR!B32,IF($M$5=5,NR!B32,IF($M$5=6,SP!B32,IF($M$5=7,SW!B32,IF($M$5=8,TS!B32,IF($M$5=9,ExtraTaal1!B32,IF($M$5=10,ExtraTaal2!B32,IF($M$5=11,ExtraTaal3!B32,))))))))))) -> Beachtung: Die Temperatur, bei der Wasserdampf in der Umgebungsluft zu kondensieren beginnt, wird als Taupunkttemperatur bezeichnet. Kondensat kann sowohl das Gerät als auch seine Umgebung beschädigen. Das Gerät schaltet sich nicht aus, wenn der Taupunkt erreicht ist. Der Kunde sollte daher die Taupunkttemperatur überprüfen und verhindern, dass die Temperatur unter den Taupunkt fällt. Jaga N.V. kann nicht für Schäden haftbar gemacht werden, die durch Kondensat verursacht werden. | C31: =IF($M$5=1,NL!C31,IF($M$5=2,EN!C31,IF($M$5=3,DE!C31,IF($M$5=4,FR!C31,IF($M$5=5,NR!C31,IF($M$5=6,SP!C31,IF($M$5=7,SW!C31,IF($M$5=8,TS!C31,IF($M$5=9,ExtraTaal1!C31,IF($M$5=10,ExtraTaal2!C31,IF($M$5=11,ExtraTaal3!C31,))))))))))) -> 0 | D31: =IF($M$5=1,NL!D31,IF($M$5=2,EN!D31,IF($M$5=3,DE!D31,IF($M$5=4,FR!D31,IF($M$5=5,NR!D31,IF($M$5=6,SP!D31,IF($M$5=7,SW!D31,IF($M$5=8,TS!D31,IF($M$5=9,ExtraTaal1!D31,IF($M$5=10,ExtraTaal2!D31,IF($M$5=11,ExtraTaal3!D31,))))))))))) -> 0 | E31: =IF($M$5=1,NL!E31,IF($M$5=2,EN!E31,IF($M$5=3,DE!E31,IF($M$5=4,FR!E31,IF($M$5=5,NR!E31,IF($M$5=6,SP!E31,IF($M$5=7,SW!E31,IF($M$5=8,TS!E31,IF($M$5=9,ExtraTaal1!E31,IF($M$5=10,ExtraTaal2!E31,IF($M$5=11,ExtraTaal3!E31,))))))))))) -> 0 | F31: =IF($M$5=1,NL!F31,IF($M$5=2,EN!F31,IF($M$5=3,DE!F31,IF($M$5=4,FR!F31,IF($M$5=5,NR!F31,IF($M$5=6,SP!F31,IF($M$5=7,SW!F31,IF($M$5=8,TS!F31,IF($M$5=9,ExtraTaal1!F31,IF($M$5=10,ExtraTaal2!F31,IF($M$5=11,ExtraTaal3!F31,))))))))))) -> 0 | G31: =IF($M$5=1,NL!G31,IF($M$5=2,EN!G31,IF($M$5=3,DE!G31,IF($M$5=4,FR!G31,IF($M$5=5,NR!G31,IF($M$5=6,SP!G31,IF($M$5=7,SW!G31,IF($M$5=8,TS!G31,IF($M$5=9,ExtraTaal1!G31,IF($M$5=10,ExtraTaal2!G31,IF($M$5=11,ExtraTaal3!G31,))))))))))) -> 0 | H31: =IF($M$5=1,NL!H31,IF($M$5=2,EN!H31,IF($M$5=3,DE!H31,IF($M$5=4,FR!H31,IF($M$5=5,NR!H31,IF($M$5=6,SP!H31,IF($M$5=7,SW!H31,IF($M$5=8,TS!H31,IF($M$5=9,ExtraTaal1!H31,IF($M$5=10,ExtraTaal2!H31,IF($M$5=11,ExtraTaal3!H31,))))))))))) -> 0 | I31: =IF($M$5=1,NL!I31,IF($M$5=2,EN!I31,IF($M$5=3,DE!I31,IF($M$5=4,FR!I31,IF($M$5=5,NR!I31,IF($M$5=6,SP!I31,IF($M$5=7,SW!I31,IF($M$5=8,TS!I31,IF($M$5=9,ExtraTaal1!I31,IF($M$5=10,ExtraTaal2!I31,IF($M$5=11,ExtraTaal3!I31,))))))))))) -> 0 | J31: =IF($M$5=1,NL!J31,IF($M$5=2,EN!J31,IF($M$5=3,DE!J31,IF($M$5=4,FR!J31,IF($M$5=5,NR!J31,IF($M$5=6,SP!J31,IF($M$5=7,SW!J31,IF($M$5=8,TS!J31,IF($M$5=9,ExtraTaal1!J31,IF($M$5=10,ExtraTaal2!J31,IF($M$5=11,ExtraTaal3!J31,))))))))))) -> 0 | K31: =IF($M$5=1,NL!K31,IF($M$5=2,EN!K31,IF($M$5=3,DE!K31,IF($M$5=4,FR!K31,IF($M$5=5,NR!K31,IF($M$5=6,SP!K31,IF($M$5=7,SW!K31,IF($M$5=8,TS!K31,IF($M$5=9,ExtraTaal1!K31,IF($M$5=10,ExtraTaal2!K31,IF($M$5=11,ExtraTaal3!K31,))))))))))) -> 0 | M31: 250 | N31: 1036 | O31: 1296 | P31: 4809 | Q31: 6972 | R31: 448 | S31: 709 | T31: 25 | U31: 37 | V31: 21 | W31: 34 | X31: 1569 | Y31: 1916 | Z31: 5196 | AA31: 8208 | AB31: 350 | AC31: 742 | AD31: 24 | AE31: 36 | AF31: 13 | AG31: 18.5 | AH31: 933 | AI31: 1166 | AJ31: 4329 | AK31: 6275 | AL31: 348 | AM31: 538 | AN31: 25 | AO31: 37 | AP31: 21 | AQ31: 34 | AR31: 1412 | AS31: 1725 | AT31: 4677 | AU31: 7388 | AV31: 266 | AW31: 554 | AX31: 24 | AY31: 36 | AZ31: 13 | BA31: 18.5 | BB31: 763 | BC31: 1019 | BD31: 3276 | BE31: 4413 | BF31: 358 | BG31: 567 | BH31: 24 | BI31: 36 | BJ31: 18.9 | BK31: 30.6 | BL31: =BB31/1.111 -> 687 | BM31: =BC31/1.111 -> 917 | BN31: =BD31/1.111 -> 2949 | BO31: 3972 | BP31: 272 | BQ31: 424 | BR31: 24 | BS31: 36 | BT31: 19 | BU31: 31 | BV31: 6.309859 | BW31: 6.330357 | BX31: 4.666667 | BY31: 4.666667 | BZ31: 7.706573 | CA31: 7.744494
B32: JAGA N.V. • Verbindingslaan 16 • 3590 Diepenbeek Belgium • T +32 (0)11 29 41 11 • F +32 (0)11 32 35 78 • info@jaga.be • www.jaga.com | M32: 270 | N32: 1130 | O32: 1414 | P32: 5246 | Q32: 7606 | R32: 472 | S32: 746 | T32: 25 | U32: 38 | V32: 22 | W32: 35.7 | X32: 1711 | Y32: 2090 | Z32: 5669 | AA32: 8954 | AB32: 375 | AC32: 795 | AD32: 24 | AE32: 36 | AF32: 14 | AG32: 19.7 | AH32: 1017 | AI32: 1272 | AJ32: 4722 | AK32: 6846 | AL32: 366 | AM32: 566 | AN32: 25 | AO32: 38 | AP32: 22 | AQ32: 35.7 | AR32: 1540 | AS32: 1882 | AT32: 5102 | AU32: 8060 | AV32: 285 | AW32: 594 | AX32: 24 | AY32: 36 | AZ32: 14 | BA32: 19.7 | BB32: 833 | BC32: 1111 | BD32: 3574 | BE32: 4814 | BF32: 378 | BG32: 597 | BH32: 24 | BI32: 37 | BJ32: 19.5 | BK32: 32.1 | BL32: 750 | BM32: 1000 | BN32: 3217 | BO32: 4333 | BP32: 287 | BQ32: 446 | BR32: 24 | BS32: 37 | BT32: 20 | BU32: 32 | BV32: 6.647887 | BW32: 6.660714 | BX32: 5.000000 | BY32: 5.000000 | BZ32: 8.048592 | CA32: 8.072321
B33: KBC IBAN: BE16 459 250 300 174 BIC:KREDBEBB • ING IBAN: BE97 335 009 564 549 BIC: BBRUBEBB • RPR Hasselt 45.752 • BE0413.382.425 | M33: 290 | N33: 1225 | O33: 1531 | P33: 5684 | Q33: 8239 | R33: 519 | S33: 821 | T33: 26 | U33: 38 | V33: 24 | W33: 39.1 | X33: 1854 | Y33: 2265 | Z33: 6141 | AA33: 9701 | AB33: 400 | AC33: 848 | AD33: 25 | AE33: 37 | AF33: 15 | AG33: 20.9 | AH33: 1102 | AI33: 1378 | AJ33: 5116 | AK33: 7416 | AL33: 403 | AM33: 623 | AN33: 26 | AO33: 38 | AP33: 24 | AQ33: 39.1 | AR33: 1669 | AS33: 2038 | AT33: 5528 | AU33: 8731 | AV33: 304 | AW33: 634 | AX33: 24 | AY33: 36 | AZ33: 15 | BA33: 20.9 | BB33: 902 | BC33: 1204 | BD33: 3871 | BE33: 5216 | BF33: 415 | BG33: 657 | BH33: 25 | BI33: 37 | BJ33: 21.3 | BK33: 35.2 | BL33: 812 | BM33: 1084 | BN33: 3485 | BO33: 4695 | BP33: 316 | BQ33: 491 | BR33: 25 | BS33: 37 | BT33: 21 | BU33: 35 | BV33: 7.309859 | BW33: 7.330357 | BX33: 5.333333 | BY33: 5.333333 | BZ33: 8.989906 | CA33: 9.027827

Sheet NL (hidden)
F4: Taal/Language/Sprache/Langue/Språk/Lengua
F5: Uitvoering: | M5: Inbouw
F6: Hoogte [cm]: | M6: Met omkasting
F7: Ventilatorsnelheid
B9: Temperaturen | M9: Kopieer alle data
B10: Verwarmen: | F10: Koelen: | J10: Eenheidsstelsel | M10: SI-eenheden
B11: Water aanvoer | E11: =IF(UnitsNo=1,"°C",IF(UnitsNo=2,"°F",)) -> °C | F11: =B11 -> Water aanvoer | I11: =E11 -> °C | M11: Imperiale-eenheden
B12: Water retour | E12: =E11 -> °C | F12: =B12 -> Water retour | I12: =E11 -> °C
B13: Ruimte | E13: =E11 -> °C | F13: =B13 -> Ruimte | I13: =E11 -> °C
B16: =CONCATENATE("Lengte ",IF(UnitsNo=1,"[cm]",IF(UnitsNo=2,"[inch]",))) -> Lengte [cm] | C16: =CONCATENATE("Verwarmvermogen in",IF(UnitsNo=1," [W]",IF(UnitsNo=2," [Btu/h]",))) -> Verwarmvermogen in [W] | D16: =CONCATENATE("Waterdebiet, verwarming in",IF(UnitsNo=1," [l/h]",IF(UnitsNo=2," [GPM]",))) -> Waterdebiet, verwarming in [l/h] | E16: ="Waterzijdig drukverlies ["&IF(UnitsNo=1,"kPa","ftH2O")&"]" -> Waterzijdig drukverlies [kPa] | F16: =CONCATENATE("Koelvermogen in",IF(UnitsNo=1," [W]",IF(UnitsNo=2," [Btu/h]",))) -> Koelvermogen in [W] | G16: =CONCATENATE("Waterdebiet, koeling in",IF(UnitsNo=1," [l/h]",IF(UnitsNo=2," [GPM]",))) -> Waterdebiet, koeling in [l/h] | H16: =E16 -> Waterzijdig drukverlies [kPa] | I16: ="Luchtdebiet"&IF(UnitsNo=1," [m³/h]",IF(UnitsNo=2," [CFM]",)) -> Luchtdebiet [m³/h] | J16: Geluidsdruk* [dB(A)] | K16: Elektr. vermogen [W]
B17: =CONCATENATE("Clima Beam - "," H",cal!H6," B",cal!M15," Type ",cal!L16) -> Clima Beam - H9,6 B33 Type 8
B31: *Geluidsdruk bij een aangenomen ruimtedemping van 8dB(A)
B32: Opgelet: De temperatuur waarbij waterdamp begint te condenseren in de omgevingslucht wordt de dauwpunttemperatuur genoemd. Condensaat kan zowel het apparaat als zijn omgeving beschadigen. Het apparaat schakelt niet uit wanneer het dauwpunt bereikt wordt. De klant moet daarom de dauwpunttemperatuur controleren en voorkomen dat de temperatuur onder het dauwpunt daalt. Jaga N.V.kan niet aansprakelijk worden gesteld voor schade veroorzaakt door condensaat.
B33: JAGA N.V. • Verbindingslaan 16 • 3590 Diepenbeek Belgium • T +32 (0)11 29 41 11 • F +32 (0)11 32 35 78 • info@jaga.be • www.jaga.com KBC IBAN: BE16 459 250 300 174 BIC:KREDBEBB • ING IBAN: BE97 335 009 564 549 BIC: BBRUBEBB • RPR Hasselt 45.752 • BE0413.382.425

Sheet EN (hidden)
F4: Taal/Language/Sprache/Langue/Språk/Lengua
F5: Model: | M5: Built-in
F6: Height [cm]: | M6: With casing
F7: Fan speed
B9: Temperatures | M9: Copy all data
B10: Heating: | F10: Cooling: | J10: Unit conversion | M10: SI-units
B11: Supply water | E11: =IF(UnitsNo=1,"°C",IF(UnitsNo=2,"°F",)) -> °C | F11: =B11 -> Supply water | I11: =E11 -> °C | K11: =E11 -> °C | M11: Imperial-units
B12: Return water | E12: =E11 -> °C | F12: =B12 -> Return water | I12: =E11 -> °C | K12: =E11 -> °C
B13: Entering air | E13: =E11 -> °C | F13: =B13 -> Entering air | I13: =E11 -> °C | K13: =E11 -> °C
B16: =CONCATENATE("Length ",IF(UnitsNo=1,"[cm]",IF(UnitsNo=2,"[inch]",))) -> Length [cm] | C16: =CONCATENATE("Heating capacity in",IF(UnitsNo=1," [W]",IF(UnitsNo=2," [Btu/h]",))) -> Heating capacity in [W] | D16: =CONCATENATE("Water flowrate, heating in",IF(UnitsNo=1," [l/h]",IF(UnitsNo=2," [GPM]",))) -> Water flowrate, heating in [l/h] | E16: ="Water side pressure loss ["&IF(UnitsNo=1,"kPa","ftH2O")&"]" -> Water side pressure loss [kPa] | F16: =CONCATENATE("Sens. cooling capacity in",IF(UnitsNo=1," [W]",IF(UnitsNo=2," [Btu/h]",))) -> Sens. cooling capacity in [W] | G16: =CONCATENATE("Water flowrate, cooling in",IF(UnitsNo=1," [l/h]",IF(UnitsNo=2," [GPM]",))) -> Water flowrate, cooling in [l/h] | H16: =E16 -> Water side pressure loss [kPa] | I16: ="Air flowrate"&IF(UnitsNo=1," [m³/h]",IF(UnitsNo=2," [CFM]",)) -> Air flowrate [m³/h] | J16: Sound pressure* [dB(A)] | K16: Electric power [W]
B17: =CONCATENATE("Clima Beam - "," H",cal!H6," B",cal!M15," Type ",cal!L16) -> Clima Beam - H9,6 B33 Type 8
B31: * Sound pressure at an assumed room damping of 8dB (A)
B32: Attention: The temperature at which water vapor starts to condense in the ambient air is called the dew point temperature. Condensate can damage both the device and its environment. The device does not switch off when the dew point is reached. The customer should therefore check the dew point temperature and prevent the temperature from dropping below the dew point. Jaga N.V. cannot be held liable for damage caused by condensate.
B33: JAGA N.V. • Verbindingslaan 16 • 3590 Diepenbeek Belgium • T +32 (0)11 29 41 11 • F +32 (0)11 32 35 78 • info@jaga.be • www.jaga.com KBC IBAN: BE16 459 250 300 174 BIC:KREDBEBB • ING IBAN: BE97 335 009 564 549 BIC: BBRUBEBB • RPR Hasselt 45.752 • BE0413.382.425

Sheet DE (hidden)
F4: Taal/Language/Sprache/Langue/Språk/Lengua
F5: Ausführung: | M5: Einbau
F6: Höhe [cm]: | M6: mit Verkleidung
F7: Drehzahlstufe
B9: Temperaturen | M9: Daten kopieren
B10: Heizen: | F10: Kühlen: | J10: Einheiten | M10: SI-einheiten
B11: Vorlauftemp. | E11: =IF(UnitsNo=1,"°C",IF(UnitsNo=2,"°F",)) -> °C | F11: =B11 -> Vorlauftemp. | I11: =E11 -> °C | K11: =E11 -> °C | M11: Imperiale-einheiten
B12: Rücklauftemp. | E12: =E11 -> °C | F12: =B12 -> Rücklauftemp. | I12: =E11 -> °C | K12: =E11 -> °C
B13: Raumtemp. | E13: =E11 -> °C | F13: =B13 -> Raumtemp. | I13: =E11 -> °C | K13: =E11 -> °C
B16: =CONCATENATE("Länge ",IF(UnitsNo=1,"[cm]",IF(UnitsNo=2,"[inch]",))) -> Länge [cm] | C16: =CONCATENATE("Wärmeleistung in",IF(UnitsNo=1," [W]",IF(UnitsNo=2," [Btu/h]",))) -> Wärmeleistung in [W] | D16: =CONCATENATE("Heizmittelstrom in",IF(UnitsNo=1," [l/h]",IF(UnitsNo=2," [GPM]",))) -> Heizmittelstrom in [l/h] | E16: ="zug. wassers. Druckverlust ["&IF(UnitsNo=1,"kPa","ftH2O")&"]" -> zug. wassers. Druckverlust [kPa] | F16: =CONCATENATE("Sens. kälteleistung in",IF(UnitsNo=1," [W]",IF(UnitsNo=2," [Btu/h]",))) -> Sens. kälteleistung in [W] | G16: =CONCATENATE("Kühlmittelstrom in",IF(UnitsNo=1," [l/h]",IF(UnitsNo=2," [GPM]",))) -> Kühlmittelstrom in [l/h] | H16: =E16 -> zug. wassers. Druckverlust [kPa] | I16: ="Luftvolumenstrom"&IF(UnitsNo=1," [m³/h]",IF(UnitsNo=2," [CFM]",)) -> Luftvolumenstrom [m³/h] | J16: Schalldruckpegel* [dB(A)] | K16: Elektr. leistung [W]
B17: =CONCATENATE("Clima Beam - "," H",cal!H6," B",cal!M15," Typ ",cal!L16) -> Clima Beam - H9,6 B33 Typ 8
B31: * Schalldruck bei einer angenommenen Raumdämpfung von 8dB (A)
B32: Beachtung: Die Temperatur, bei der Wasserdampf in der Umgebungsluft zu kondensieren beginnt, wird als Taupunkttemperatur bezeichnet. Kondensat kann sowohl das Gerät als auch seine Umgebung beschädigen. Das Gerät schaltet sich nicht aus, wenn der Taupunkt erreicht ist. Der Kunde sollte daher die Taupunkttemperatur überprüfen und verhindern, dass die Temperatur unter den Taupunkt fällt. Jaga N.V. kann nicht für Schäden haftbar gemacht werden, die durch Kondensat verursacht werden.
B33: JAGA N.V. • Verbindingslaan 16 • 3590 Diepenbeek Belgium • T +32 (0)11 29 41 11 • F +32 (0)11 32 35 78 • info@jaga.be • www.jaga.com KBC IBAN: BE16 459 250 300 174 BIC:KREDBEBB • ING IBAN: BE97 335 009 564 549 BIC: BBRUBEBB • RPR Hasselt 45.752 • BE0413.382.425

Sheet FR (hidden)
F4: Taal/Language/Sprache/Langue/Språk/Lengua
F5: Version: | M5: Intégré
F6: Hauteur [cm]: | M6: Avec caisson
F7: Niveau de vitesse
B9: Températures | M9: Copier toutes des données
B10: Chauffer: | F10: Refroidir: | J10: Einheiten | M10: Unités-SI
B11: Temp. entrée | E11: =IF(UnitsNo=1,"°C",IF(UnitsNo=2,"°F",)) -> °C | F11: =B11 -> Temp. entrée | I11: =E11 -> °C | K11: =E11 -> °C | M11: Unités-Impériales
B12: Temp. retour | E12: =E11 -> °C | F12: =B12 -> Temp. retour | I12: =E11 -> °C | K12: =E11 -> °C
B13: Temp. ambiante | E13: =E11 -> °C | F13: =B13 -> Temp. ambiante | I13: =E11 -> °C | K13: =E11 -> °C
B16: =CONCATENATE("Länge ",IF(UnitsNo=1,"[cm]",IF(UnitsNo=2,"[inch]",))) -> Länge [cm] | C16: =CONCATENATE("Capacité de chauffer en",IF(UnitsNo=1," [W]",IF(UnitsNo=2," [Btu/h]",))) -> Capacité de chauffer en [W] | D16: =CONCATENATE("Débit d'eau, chauffer en",IF(UnitsNo=1," [l/h]",IF(UnitsNo=2," [GPM]",))) -> Débit d'eau, chauffer en [l/h] | E16: ="Perte de charge ["&IF(UnitsNo=1,"kPa","ftH2O")&"]" -> Perte de charge [kPa] | F16: =CONCATENATE("Capacité de refroidissement en",IF(UnitsNo=1," [W]",IF(UnitsNo=2," [Btu/h]",))) -> Capacité de refroidissement en [W] | G16: =CONCATENATE("Débit d'eau, refroidissement en",IF(UnitsNo=1," [l/h]",IF(UnitsNo=2," [GPM]",))) -> Débit d'eau, refroidissement en [l/h] | H16: =E16 -> Perte de charge [kPa] | I16: ="Débit d'air"&IF(UnitsNo=1," [m³/h]",IF(UnitsNo=2," [CFM]",)) -> Débit d'air [m³/h] | J16: Pression sonore * [dB(A)] | K16: Puissance électrique [W]
B17: =CONCATENATE("Clima Beam - "," H",cal!H6," B",cal!M15," Type ",cal!L16) -> Clima Beam - H9,6 B33 Type 8
B31: * Pression acoustique à un amortissement supposé de la pièce de 8 dB (A)
B32: Attention: La température à laquelle la vapeur d'eau commence à se condenser dans l'air ambiant est appelée température du point de rosée. Le condensat peut endommager à la fois l'appareil et son environnement. L'appareil ne s'éteint pas lorsque le point de rosée est atteint. Le client doit donc vérifier la température du point de rosée et éviter que la température ne descende en dessous du point de rosée. Jaga N.V.ne peut être tenu responsable des dommages causés par le condensat.
B33: JAGA N.V. • Verbindingslaan 16 • 3590 Diepenbeek Belgium • T +32 (0)11 29 41 11 • F +32 (0)11 32 35 78 • info@jaga.be • www.jaga.com KBC IBAN: BE16 459 250 300 174 BIC:KREDBEBB • ING IBAN: BE97 335 009 564 549 BIC: BBRUBEBB • RPR Hasselt 45.752 • BE0413.382.425

Sheet NR (hidden)
F4: Taal/Language/Sprache/Langue/Språk/Lengua
F5: Modell: | M5: Innebygd
F6: Høyde [cm]: | M6: Med hus
F7: Hastighet
B9: Temperaturer | M9: Kopier alle data
B10: Varme: | F10: Kjøling: | J10: Enhetssystem | M10: SI-enheter
B11: Tur vann | E11: =IF(UnitsNo=1,"°C",IF(UnitsNo=2,"°F",)) -> °C | F11: =B11 -> Tur vann | I11: =E11 -> °C | K11: =E11 -> °C | M11: Imperiale-enheter
B12: Retur vann | E12: =E11 -> °C | F12: =B12 -> Retur vann | I12: =E11 -> °C | K12: =E11 -> °C
B13: Rom | E13: =E11 -> °C | F13: =B13 -> Rom | I13: =E11 -> °C | K13: =E11 -> °C
B16: =CONCATENATE("Lengde ",IF(UnitsNo=1,"[cm]",IF(UnitsNo=2,"[inch]",))) -> Lengde [cm] | C16: =CONCATENATE("Varme effekt",IF(UnitsNo=1," [W]",IF(UnitsNo=2," [Btu/h]",))) -> Varme effekt [W] | D16: =CONCATENATE("Vannmengde, varme",IF(UnitsNo=1," [l/h]",IF(UnitsNo=2," [GPM]",))) -> Vannmengde, varme [l/h] | E16: ="Trykktap ["&IF(UnitsNo=1,"kPa","ftH2O")&"]" -> Trykktap [kPa] | F16: =CONCATENATE("Kjøling effekt",IF(UnitsNo=1," [W]",IF(UnitsNo=2," [Btu/h]",))) -> Kjøling effekt [W] | G16: =CONCATENATE("Vannmengde, kjøling",IF(UnitsNo=1," [l/h]",IF(UnitsNo=2," [GPM]",))) -> Vannmengde, kjøling [l/h] | H16: =E16 -> Trykktap [kPa] | I16: ="Luftmengde"&IF(UnitsNo=1," [m³/h]",IF(UnitsNo=2," [CFM]",)) -> Luftmengde [m³/h] | J16: Lydtrykk * [dB(A)] | K16: Elektrisk effekt [W]
B17: =CONCATENATE("Clima Beam - "," H",cal!H6," B",cal!M15," Type ",cal!L16) -> Clima Beam - H9,6 B33 Type 8
B31: * Lydtrykk ved antatt romdemping av 8dB (A)
B32: Merk følgende: Temperaturen som vanndamp begynner å kondensere i den omgivende luften kalles duggpunktstemperaturen. Kondensat kan skade både enheten og omgivelsene. Enheten slås ikke av når duggpunktet er nådd. Kunden bør derfor sjekke duggpunktstemperaturen og forhindre at temperaturen faller under duggpunktet. Jaga N.V. kan ikke holdes ansvarlig for skader forårsaket av kondensat.
B33: JAGA N.V. • Verbindingslaan 16 • 3590 Diepenbeek Belgium • T +32 (0)11 29 41 11 • F +32 (0)11 32 35 78 • info@jaga.be • www.jaga.com KBC IBAN: BE16 459 250 300 174 BIC:KREDBEBB • ING IBAN: BE97 335 009 564 549 BIC: BBRUBEBB • RPR Hasselt 45.752 • BE0413.382.425

Sheet SP (hidden)
F4: Taal/Language/Sprache/Langue/Språk/Lengua
F5: Montaje: | M5: Empotrado
F6: Ancho [cm]: | M6: Con Carcasa
F7: Nivel de velocidad
B9: Temperaturas | M9: Copiar todos los datos
B10: Calefacción: | F10: Enfriamiento: | J10: Convers. de unidades | M10: Unidades-SI
B11: Agua impulsión | E11: =IF(UnitsNo=1,"°C",IF(UnitsNo=2,"°F",)) -> °C | F11: =B11 -> Agua impulsión | I11: =E11 -> °C | K11: =E11 -> °C | M11: Unidades-Imperial
B12: Agua retorno | E12: =E11 -> °C | F12: =B12 -> Agua retorno | I12: =E11 -> °C | K12: =E11 -> °C
B13: Ambiente | E13: =E11 -> °C | F13: =B13 -> Ambiente | I13: =E11 -> °C | K13: =E11 -> °C
B16: =CONCATENATE("Longitud ",IF(UnitsNo=1,"[cm]",IF(UnitsNo=2,"[inch]",))) -> Longitud [cm] | C16: =CONCATENATE("Emisión calefacción",IF(UnitsNo=1," [W]",IF(UnitsNo=2," [Btu/h]",))) -> Emisión calefacción [W] | D16: =CONCATENATE("Caudal de agua, calefacción",IF(UnitsNo=1," [l/h]",IF(UnitsNo=2," [GPM]",))) -> Caudal de agua, calefacción [l/h] | E16: ="Pérdida de carga del agua ["&IF(UnitsNo=1,"kPa","ftH2O")&"]" -> Pérdida de carga del agua [kPa] | F16: =CONCATENATE("Emisión Frío",IF(UnitsNo=1," [W]",IF(UnitsNo=2," [Btu/h]",))) -> Emisión Frío [W] | G16: =CONCATENATE("Caudal de agua, Frío",IF(UnitsNo=1," [l/h]",IF(UnitsNo=2," [GPM]",))) -> Caudal de agua, Frío [l/h] | H16: =E16 -> Pérdida de carga del agua [kPa] | I16: ="Caudal de aire"&IF(UnitsNo=1," [m³/h]",IF(UnitsNo=2," [CFM]",)) -> Caudal de aire [m³/h] | J16: Presión sonora * [dB(A)] | K16: Potencia eléctrica absorbida [W]
B17: =CONCATENATE("Clima Beam - "," H",cal!H6," B",cal!M15," Type ",cal!L16) -> Clima Beam - H9,6 B33 Type 8
B31: * Presión sonora en una sala de amortiguación supuesta de 8dB (A)
B32: Atención: La temperatura a la que el vapor de agua comienza a condensarse en el aire ambiente se denomina temperatura del punto de rocío. El condensado puede dañar tanto el dispositivo como su entorno. El dispositivo no se apaga cuando se alcanza el punto de rocío. Por lo tanto, el cliente debe verificar la temperatura del punto de rocío y evitar que la temperatura caiga por debajo del punto de rocío. Jaga N.V. no se hace responsable de los daños causados ​​por el condensado.
B33: JAGA N.V. • Verbindingslaan 16 • 3590 Diepenbeek Belgium • T +32 (0)11 29 41 11 • F +32 (0)11 32 35 78 • info@jaga.be • www.jaga.com KBC IBAN: BE16 459 250 300 174 BIC:KREDBEBB • ING IBAN: BE97 335 009 564 549 BIC: BBRUBEBB • RPR Hasselt 45.752 • BE0413.382.425

Sheet SW (hidden)
F4: Taal/Language/Sprache/Språk/Jazyk
F5: Modell: | M5: Innebygd
F6: Höjd [cm]: | M6: Med hus
F7: Fläkthastighet
B9: Temperaturer | M9: Kopiera all data
B10: Värme: | F10: Kyla: | J10: Enhetssystem | M10: SI-enheter
B11: Tillop | E11: =IF(UnitsNo=1,"°C",IF(UnitsNo=2,"°F",)) -> °C | F11: =B11 -> Tillop | I11: =E11 -> °C | K11: =E11 -> °C | M11: Imperiella-enheter
B12: Retur | E12: =E11 -> °C | F12: =B12 -> Retur | I12: =E11 -> °C | K12: =E11 -> °C
B13: Rum (torr) | E13: =E11 -> °C | F13: =B13 -> Rum (torr) | I13: =E11 -> °C | K13: =E11 -> °C
B16: =CONCATENATE("Längd ",IF(UnitsNo=1,"[cm]",IF(UnitsNo=2,"[inch]",))) -> Längd [cm] | C16: =CONCATENATE("Värme effekt",IF(UnitsNo=1," [W]",IF(UnitsNo=2," [Btu/h]",))) -> Värme effekt [W] | D16: =CONCATENATE("Vattenflöde, värme",IF(UnitsNo=1," [l/h]",IF(UnitsNo=2," [GPM]",))) -> Vattenflöde, värme [l/h] | E16: ="Tryckfall, vatten ["&IF(UnitsNo=1,"kPa","ftH2O")&"]" -> Tryckfall, vatten [kPa] | F16: =CONCATENATE("Märkbar kylkapacitet ",IF(UnitsNo=1," [W]",IF(UnitsNo=2," [Btu/h]",))) -> Märkbar kylkapacitet [W] | G16: =CONCATENATE("Vattenflöde, kyla ",IF(UnitsNo=1," [l/h]",IF(UnitsNo=2," [GPM]",))) -> Vattenflöde, kyla [l/h] | H16: =E16 -> Tryckfall, vatten [kPa] | I16: ="Luftflöde"&IF(UnitsNo=1," [m³/h]",IF(UnitsNo=2," [CFM]",)) -> Luftflöde [m³/h] | J16: Ljudtryck* [dB(A)] | K16: Effektförbrukning [W]
B17: =CONCATENATE("Clima Beam - "," Höjd ",cal!H6," djup ",cal!M15,", typ ",cal!L16) -> Clima Beam - Höjd 9,6 djup 33, typ 8
B31: * Ljudtryck med en antagen rumsdämpning på 8dB (A).
B32: Uppmärksamhet: Temperaturen vid vilken vattenånga börjar kondensera i den omgivande luften kallas daggpunktstemperatur. Kondens kan skada både enheten och dess omgivning. Enheten stängs inte av när daggpunkten uppnås. Kunden bör därför kontrollera daggpunktstemperaturen och förhindra att temperaturen sjunker under daggpunkten. Jaga N.V. kan inte hållas ansvarigt för skador orsakade av kondensat.
B33: JAGA N.V. • Verbindingslaan 16 • 3590 Diepenbeek Belgium • T +32 (0)11 29 41 11 • F +32 (0)11 32 35 78 • info@jaga.be • www.jaga.com KBC IBAN: BE16 459 250 300 174 BIC:KREDBEBB • ING IBAN: BE97 335 009 564 549 BIC: BBRUBEBB • RPR Hasselt 45.752 • BE0413.382.425

Sheet TS (hidden)
F4: Taal/Language/Sprache/Langue/Språk/Lengua
F5: Jednotka: | M5: Vestavba
F6: Výška [cm]: | M6: s pouzdrem
F7: Rychlost
B9: Teploty | M9: Kopírovat všechna data
B10: Topení: | F10: Chlazení: | J10: Převod jednotek | M10: Mezinárodní (Sl)
B11: Voda na přívodu | E11: =IF(UnitsNo=1,"°C",IF(UnitsNo=2,"°F",)) -> °C | F11: =B11 -> Voda na přívodu | I11: =E11 -> °C | K11: =E11 -> °C | M11: Imperiální
B12: Voda na zpátečce | E12: =E11 -> °C | F12: =B12 -> Voda na zpátečce | I12: =E11 -> °C | K12: =E11 -> °C
B13: Teplota vzduchu | E13: =E11 -> °C | F13: =B13 -> Teplota vzduchu | I13: =E11 -> °C | K13: =E11 -> °C
B16: =CONCATENATE("Délka ",IF(UnitsNo=1,"[cm]",IF(UnitsNo=2,"[inch]",))) -> Délka [cm] | C16: =CONCATENATE("Výkon Topení",IF(UnitsNo=1," [W]",IF(UnitsNo=2," [Btu/h]",))) -> Výkon Topení [W] | D16: =CONCATENATE("Průtok vody, topení",IF(UnitsNo=1," [l/h]",IF(UnitsNo=2," [GPM]",))) -> Průtok vody, topení [l/h] | E16: ="Tlaková ztráta ["&IF(UnitsNo=1,"kPa","ftH2O")&"]" -> Tlaková ztráta [kPa] | F16: =CONCATENATE("Výkon chlazení Znatelný",IF(UnitsNo=1," [W]",IF(UnitsNo=2," [Btu/h]",))) -> Výkon chlazení Znatelný [W] | G16: =CONCATENATE("Průtok vody,chlazen",IF(UnitsNo=1," [l/h]",IF(UnitsNo=2," [GPM]",))) -> Průtok vody,chlazen [l/h] | H16: =E16 -> Tlaková ztráta [kPa] | I16: ="Průtok vzduchu"&IF(UnitsNo=1," [m³/h]",IF(UnitsNo=2," [CFM]",)) -> Průtok vzduchu [m³/h] | J16: Akustický tlak* [dB(A)] | K16: Elektrický výkon [W]
B17: =CONCATENATE("Clima Beam - "," Výška ",cal!H6," šířka ",cal!M15,", typ ",cal!L16) -> Clima Beam - Výška 9,6 šířka 33, typ 8
B31: * Akustický výkon s předpokládaným útlumem místnosti 8 dB (A).
B32: Pozornost: Teplota, při které začne vodní pára kondenzovat v okolním vzduchu, se nazývá teplota rosného bodu. Kondenzát může poškodit zařízení i jeho okolí. Po dosažení rosného bodu se zařízení nevypne. Zákazník by proto měl zkontrolovat teplotu rosného bodu a zabránit poklesu teploty pod rosný bod. Společnost Jaga N.V. nenese odpovědnost za škody způsobené kondenzátem.
B33: JAGA N.V. • Verbindingslaan 16 • 3590 Diepenbeek Belgium • T +32 (0)11 29 41 11 • F +32 (0)11 32 35 78 • info@jaga.be • www.jaga.com KBC IBAN: BE16 459 250 300 174 BIC:KREDBEBB • ING IBAN: BE97 335 009 564 549 BIC: BBRUBEBB • RPR Hasselt 45.752 • BE0413.382.425

Sheet ExtraTaal1 (hidden)
F4: Taal/Language/Sprache/Langue/Språk/Lengua
F5: Model: | M5: Built-in
F6: Height [cm]: | M6: With casing
F7: Fan speed
B9: Temperatures
B10: Heating: | F10: Cooling: | J10: Unit conversion
B11: Supply water | E11: =IF(UnitsNo=1,"°C",IF(UnitsNo=2,"°F",)) -> °C | F11: =B11 -> Supply water | I11: =E11 -> °C | K11: =E11 -> °C
B12: Return water | E12: =E11 -> °C | F12: =B12 -> Return water | I12: =E11 -> °C | K12: =E11 -> °C
B13: Entering air | E13: =E11 -> °C | F13: =B13 -> Entering air | I13: =E11 -> °C | K13: =E11 -> °C
B16: =CONCATENATE("Length ",IF(UnitsNo=1,"[cm]",IF(UnitsNo=2,"[inch]",))) -> Length [cm] | C16: =CONCATENATE("Heating capacity in",IF(UnitsNo=1," [W]",IF(UnitsNo=2," [Btu/h]",))) -> Heating capacity in [W] | D16: =CONCATENATE("Water flowrate, heating in",IF(UnitsNo=1," [l/h]",IF(UnitsNo=2," [GPM]",))) -> Water flowrate, heating in [l/h] | E16: ="Water side pressure loss ["&IF(UnitsNo=1,"kPa","ftH2O")&"]" -> Water side pressure loss [kPa] | F16: =CONCATENATE("Sens. cooling capacity in",IF(UnitsNo=1," [W]",IF(UnitsNo=2," [Btu/h]",))) -> Sens. cooling capacity in [W] | G16: =CONCATENATE("Water flowrate, cooling in",IF(UnitsNo=1," [l/h]",IF(UnitsNo=2," [GPM]",))) -> Water flowrate, cooling in [l/h] | H16: =E16 -> Water side pressure loss [kPa] | I16: ="Air flowrate"&IF(UnitsNo=1," [m³/h]",IF(UnitsNo=2," [CFM]",)) -> Air flowrate [m³/h] | J16: Sound pressure* [dB(A)] | K16: Electric power [W]
B17: =CONCATENATE("Clima Beam - "," H",cal!H6," B",cal!M15," Type ",cal!L16) -> Clima Beam - H9,6 B33 Type 8
B31: * Sound pressure at an assumed room damping of 8dB (A)
B32: Attention: The temperature at which water vapor starts to condense in the ambient air is called the dew point temperature. Condensate can damage both the device and its environment. The device does not switch off when the dew point is reached. The customer should therefore check the dew point temperature and prevent the temperature from dropping below the dew point. Jaga N.V. cannot be held liable for damage caused by condensate.
B33: JAGA N.V. • Verbindingslaan 16 • 3590 Diepenbeek Belgium • T +32 (0)11 29 41 11 • F +32 (0)11 32 35 78 • info@jaga.be • www.jaga.com KBC IBAN: BE16 459 250 300 174 BIC:KREDBEBB • ING IBAN: BE97 335 009 564 549 BIC: BBRUBEBB • RPR Hasselt 45.752 • BE0413.382.425

Sheet ExtraTaal2 (hidden)
F4: Taal/Language/Sprache/Langue/Språk/Lengua
F5: Model: | M5: Built-in
F6: Height [cm]: | M6: With casing
F7: Fan speed
B9: Temperatures
B10: Heating: | F10: Cooling: | J10: Unit conversion
B11: Supply water | E11: =IF(UnitsNo=1,"°C",IF(UnitsNo=2,"°F",)) -> °C | F11: =B11 -> Supply water | I11: =E11 -> °C | K11: =E11 -> °C
B12: Return water | E12: =E11 -> °C | F12: =B12 -> Return water | I12: =E11 -> °C | K12: =E11 -> °C
B13: Entering air | E13: =E11 -> °C | F13: =B13 -> Entering air | I13: =E11 -> °C | K13: =E11 -> °C
B16: =CONCATENATE("Length ",IF(UnitsNo=1,"[cm]",IF(UnitsNo=2,"[inch]",))) -> Length [cm] | C16: =CONCATENATE("Heating capacity in",IF(UnitsNo=1," [W]",IF(UnitsNo=2," [Btu/h]",))) -> Heating capacity in [W] | D16: =CONCATENATE("Water flowrate, heating in",IF(UnitsNo=1," [l/h]",IF(UnitsNo=2," [GPM]",))) -> Water flowrate, heating in [l/h] | E16: ="Water side pressure loss ["&IF(UnitsNo=1,"kPa","ftH2O")&"]" -> Water side pressure loss [kPa] | F16: =CONCATENATE("Sens. cooling capacity in",IF(UnitsNo=1," [W]",IF(UnitsNo=2," [Btu/h]",))) -> Sens. cooling capacity in [W] | G16: =CONCATENATE("Water flowrate, cooling in",IF(UnitsNo=1," [l/h]",IF(UnitsNo=2," [GPM]",))) -> Water flowrate, cooling in [l/h] | H16: =E16 -> Water side pressure loss [kPa] | I16: ="Air flowrate"&IF(UnitsNo=1," [m³/h]",IF(UnitsNo=2," [CFM]",)) -> Air flowrate [m³/h] | J16: Sound pressure* [dB(A)] | K16: Electric power [W]
B17: =CONCATENATE("Clima Beam - "," H",cal!H6," B",cal!M15," Type ",cal!L16) -> Clima Beam - H9,6 B33 Type 8
B31: * Sound pressure at an assumed room damping of 8dB (A)
B32: Attention: The temperature at which water vapor starts to condense in the ambient air is called the dew point temperature. Condensate can damage both the device and its environment. The device does not switch off when the dew point is reached. The customer should therefore check the dew point temperature and prevent the temperature from dropping below the dew point. Jaga N.V. cannot be held liable for damage caused by condensate.
B33: JAGA N.V. • Verbindingslaan 16 • 3590 Diepenbeek Belgium • T +32 (0)11 29 41 11 • F +32 (0)11 32 35 78 • info@jaga.be • www.jaga.com KBC IBAN: BE16 459 250 300 174 BIC:KREDBEBB • ING IBAN: BE97 335 009 564 549 BIC: BBRUBEBB • RPR Hasselt 45.752 • BE0413.382.425

Sheet ExtraTaal3 (hidden)
F4: Taal/Language/Sprache/Langue/Språk/Lengua
F5: Model: | M5: Built-in
F6: Height [cm]: | M6: With casing
F7: Fan speed
B9: Temperatures
B10: Heating: | F10: Cooling: | J10: Unit conversion
B11: Supply water | E11: =IF(UnitsNo=1,"°C",IF(UnitsNo=2,"°F",)) -> °C | F11: =B11 -> Supply water | I11: =E11 -> °C | K11: =E11 -> °C
B12: Return water | E12: =E11 -> °C | F12: =B12 -> Return water | I12: =E11 -> °C | K12: =E11 -> °C
B13: Entering air | E13: =E11 -> °C | F13: =B13 -> Entering air | I13: =E11 -> °C | K13: =E11 -> °C
B16: =CONCATENATE("Length ",IF(UnitsNo=1,"[cm]",IF(UnitsNo=2,"[inch]",))) -> Length [cm] | C16: =CONCATENATE("Heating capacity in",IF(UnitsNo=1," [W]",IF(UnitsNo=2," [Btu/h]",))) -> Heating capacity in [W] | D16: =CONCATENATE("Water flowrate, heating in",IF(UnitsNo=1," [l/h]",IF(UnitsNo=2," [GPM]",))) -> Water flowrate, heating in [l/h] | E16: ="Water side pressure loss ["&IF(UnitsNo=1,"kPa","ftH2O")&"]" -> Water side pressure loss [kPa] | F16: =CONCATENATE("Sens. cooling capacity in",IF(UnitsNo=1," [W]",IF(UnitsNo=2," [Btu/h]",))) -> Sens. cooling capacity in [W] | G16: =CONCATENATE("Water flowrate, cooling in",IF(UnitsNo=1," [l/h]",IF(UnitsNo=2," [GPM]",))) -> Water flowrate, cooling in [l/h] | H16: =E16 -> Water side pressure loss [kPa] | I16: ="Air flowrate"&IF(UnitsNo=1," [m³/h]",IF(UnitsNo=2," [CFM]",)) -> Air flowrate [m³/h] | J16: Sound pressure* [dB(A)] | K16: Electric power [W]
B17: =CONCATENATE("Clima Beam - "," H",cal!H6," B",cal!M15," Type ",cal!L16) -> Clima Beam - H9,6 B33 Type 8
B31: * Sound pressure at an assumed room damping of 8dB (A)
B32: Attention: The temperature at which water vapor starts to condense in the ambient air is called the dew point temperature. Condensate can damage both the device and its environment. The device does not switch off when the dew point is reached. The customer should therefore check the dew point temperature and prevent the temperature from dropping below the dew point. Jaga N.V. cannot be held liable for damage caused by condensate.
B33: JAGA N.V. • Verbindingslaan 16 • 3590 Diepenbeek Belgium • T +32 (0)11 29 41 11 • F +32 (0)11 32 35 78 • info@jaga.be • www.jaga.com KBC IBAN: BE16 459 250 300 174 BIC:KREDBEBB • ING IBAN: BE97 335 009 564 549 BIC: BBRUBEBB • RPR Hasselt 45.752 • BE0413.382.425
